Department Family,Entity,Date Paid,Expense Type,Expense Area,Supplier,Transaction Number,Amount (�),Supplier VAT Registration Number
BEIS,Met Office,2023-05-31,06 ACCOMMODATION,CHIEF FINANCIAL OFFICER,ABOVE THE REST COMMERCIAL CLEANING LTD,480274,41,166969348
BEIS,Met Office,2023-05-05,06 ACCOMMODATION,CHIEF FINANCIAL OFFICER,ABOVE THE REST COMMERCIAL CLEANING LTD,479210,565,166969348
BEIS,Met Office,2023-05-05,11 SERVICES,CHIEF FINANCIAL OFFICER,ADT FIRE AND SECURITY PLC,479248,954.72,413633086
BEIS,Met Office,2023-05-05,08 SOFTWARE LICENCES,CHIEF FINANCIAL OFFICER,ADVANCED BUSINESS SOLUTIONS LTD,479243,4180,927547983
BEIS,Met Office,2023-05-17,11 SERVICES,CHIEF FINANCIAL OFFICER,ALLSTAR BUSINESS SOLUTIONS LTD,479823,2739.39,747880191
BEIS,Met Office,2023-05-02,11 SERVICES,CHIEF FINANCIAL OFFICER,ALLSTAR BUSINESS SOLUTIONS LTD,479222,3198.94,747880191
BEIS,Met Office,2023-05-05,13 MISCELLANEOUS,CHIEF FINANCIAL OFFICER,ANTRIM HILLS SPRING WATER CO LTD,479211,32.4,517173455
BEIS,Met Office,2023-05-16,11 SERVICES,CHIEF FINANCIAL OFFICER,ANVIL MOBILE LIMITED,479739,161.05,981686175
BEIS,Met Office,2023-05-02,11 SERVICES,CHIEF FINANCIAL OFFICER,ANVIL MOBILE LIMITED,479115,163.44,981686175
BEIS,Met Office,2023-05-12,11 SERVICES,CHIEF FINANCIAL OFFICER,APPLE CENTRAL TAXIS,479696,2044.9,449238720
BEIS,Met Office,2023-05-05,13 MISCELLANEOUS,CHIEF FINANCIAL OFFICER,ARTHUR J. GALLAGHER INSURANCE BROKERS LIMITED,479339,679.24,GB484746209
BEIS,Met Office,2023-05-05,11 SERVICES,CHIEF FINANCIAL OFFICER,Ashfords Llp,479370,500,844502439
BEIS,Met Office,2023-05-23,11 SERVICES,CHIEF FINANCIAL OFFICER,BABBLE CLOUD LIMITED,479910,907.43,GB206270049
BEIS,Met Office,2023-05-23,13 MISCELLANEOUS,CHIEF FINANCIAL OFFICER,BANNER GROUP LIMITED,480044,4.62,GB391085740
BEIS,Met Office,2023-05-23,13 MISCELLANEOUS,CHIEF FINANCIAL OFFICER,BANNER GROUP LIMITED,480042,6.09,GB391085740
BEIS,Met Office,2023-05-23,13 MISCELLANEOUS,CHIEF FINANCIAL OFFICER,BANNER GROUP LIMITED,480043,9.8,GB391085740
BEIS,Met Office,2023-05-16,13 MISCELLANEOUS,CHIEF FINANCIAL OFFICER,BANNER GROUP LIMITED,479795,28.68,GB391085740
BEIS,Met Office,2023-05-31,13 MISCELLANEOUS,CHIEF FINANCIAL OFFICER,BANNER GROUP LIMITED,480276,39.3,GB391085740
BEIS,Met Office,2023-05-10,13 MISCELLANEOUS,CHIEF FINANCIAL OFFICER,BANNER GROUP LIMITED,479572,53.29,GB391085740
BEIS,Met Office,2023-05-24,06 ACCOMMODATION,CHIEF FINANCIAL OFFICER,Bedford Borough Council,472485,-4167.25,-
BEIS,Met Office,2023-05-24,06 ACCOMMODATION,CHIEF FINANCIAL OFFICER,Bedford Borough Council,466986,-2924.34,-
BEIS,Met Office,2023-05-24,06 ACCOMMODATION,CHIEF FINANCIAL OFFICER,Bedford Borough Council,479947,14845.25,-
BEIS,Met Office,2023-05-02,06 ACCOMMODATION,CHIEF FINANCIAL OFFICER,BIDVEST NOONAN UK LTD,479173,31.53,GB847176988
BEIS,Met Office,2023-05-02,06 ACCOMMODATION,CHIEF FINANCIAL OFFICER,BIDVEST NOONAN UK LTD,479175,69.91,GB847176988
BEIS,Met Office,2023-05-22,06 ACCOMMODATION,CHIEF FINANCIAL OFFICER,BIDVEST NOONAN UK LTD,479963,191.01,GB847176988
BEIS,Met Office,2023-05-02,06 ACCOMMODATION,CHIEF FINANCIAL OFFICER,BIDVEST NOONAN UK LTD,479187,501.58,GB847176988
BEIS,Met Office,2023-05-22,06 ACCOMMODATION,CHIEF FINANCIAL OFFICER,BIDVEST NOONAN UK LTD,479992,501.58,GB847176988
BEIS,Met Office,2023-05-02,06 ACCOMMODATION,CHIEF FINANCIAL OFFICER,BIDVEST NOONAN UK LTD,479188,1111.97,GB847176988
BEIS,Met Office,2023-05-26,06 ACCOMMODATION,CHIEF FINANCIAL OFFICER,BIDVEST NOONAN UK LTD,479991,1111.97,GB847176988
BEIS,Met Office,2023-05-31,06 ACCOMMODATION,CHIEF FINANCIAL OFFICER,Biffa Waste Services Ltd,480254,74.36,537911627
BEIS,Met Office,2023-05-31,06 ACCOMMODATION,CHIEF FINANCIAL OFFICER,Biffa Waste Services Ltd,480255,162.03,537911627
BEIS,Met Office,2023-05-31,06 ACCOMMODATION,CHIEF FINANCIAL OFFICER,Biffa Waste Services Ltd,480251,194.27,537911627
BEIS,Met Office,2023-05-31,06 ACCOMMODATION,CHIEF FINANCIAL OFFICER,Biffa Waste Services Ltd,480257,336.31,537911627
BEIS,Met Office,2023-05-31,06 ACCOMMODATION,CHIEF FINANCIAL OFFICER,Biffa Waste Services Ltd,480252,437.19,537911627
BEIS,Met Office,2023-05-31,06 ACCOMMODATION,CHIEF FINANCIAL OFFICER,Biffa Waste Services Ltd,480256,712.19,537911627
BEIS,Met Office,2023-05-31,06 ACCOMMODATION,CHIEF FINANCIAL OFFICER,Biffa Waste Services Ltd,480253,738.97,537911627
BEIS,Met Office,2023-05-31,06 ACCOMMODATION,CHIEF FINANCIAL OFFICER,Biffa Waste Services Ltd,480258,749.63,537911627
BEIS,Met Office,2023-05-25,06 ACCOMMODATION,CHIEF FINANCIAL OFFICER,BROXTOWE BOROUGH COUNCIL,480160,278.2,118033013
BEIS,Met Office,2023-05-12,11 SERVICES,CHIEF FINANCIAL OFFICER,BT CONFERENCING,479726,0.17,245719348
BEIS,Met Office,2023-05-22,11 SERVICES,CHIEF FINANCIAL OFFICER,BT GLOBAL SERVICES,479977,776.38,245719348
BEIS,Met Office,2023-05-05,11 SERVICES,CHIEF FINANCIAL OFFICER,BT GLOBAL SERVICES,479249,14874.03,245719348
BEIS,Met Office,2023-05-05,11 SERVICES,CHIEF FINANCIAL OFFICER,BT plc,479250,8426.1,245719348
BEIS,Met Office,2023-05-05,06 ACCOMMODATION,CHIEF FINANCIAL OFFICER,BUSINESS STREAM,479419,169.12,945850885
BEIS,Met Office,2023-05-09,06 ACCOMMODATION,CHIEF FINANCIAL OFFICER,BUSINESS STREAM,479464,8820.89,945850885
BEIS,Met Office,2023-05-12,06 ACCOMMODATION,CHIEF FINANCIAL OFFICER,BUSINESS SUPPORT CENTRE LTD,479702,58.95,927365208
BEIS,Met Office,2023-05-02,06 ACCOMMODATION,CHIEF FINANCIAL OFFICER,CALOR GAS LIMITED,479093,19.61,207610984
BEIS,Met Office,2023-05-02,06 ACCOMMODATION,CHIEF FINANCIAL OFFICER,CALOR GAS LIMITED,479074,34.25,207610984
BEIS,Met Office,2023-05-02,06 ACCOMMODATION,CHIEF FINANCIAL OFFICER,CALOR GAS LIMITED,479075,34.25,207610984
BEIS,Met Office,2023-05-02,06 ACCOMMODATION,CHIEF FINANCIAL OFFICER,CALOR GAS LIMITED,479076,34.25,207610984
BEIS,Met Office,2023-05-02,06 ACCOMMODATION,CHIEF FINANCIAL OFFICER,CALOR GAS LIMITED,479077,34.25,207610984
BEIS,Met Office,2023-05-02,06 ACCOMMODATION,CHIEF FINANCIAL OFFICER,CALOR GAS LIMITED,479094,34.25,207610984
BEIS,Met Office,2023-05-02,06 ACCOMMODATION,CHIEF FINANCIAL OFFICER,CALOR GAS LIMITED,479096,34.25,207610984
BEIS,Met Office,2023-05-02,06 ACCOMMODATION,CHIEF FINANCIAL OFFICER,CALOR GAS LIMITED,479095,49.18,207610984
BEIS,Met Office,2023-05-02,06 ACCOMMODATION,CHIEF FINANCIAL OFFICER,CALOR GAS LIMITED,479078,611.31,207610984
BEIS,Met Office,2023-05-17,13 MISCELLANEOUS,CHIEF FINANCIAL OFFICER,CANON UK LTD,479877,66.4,523797128
BEIS,Met Office,2023-05-05,13 MISCELLANEOUS,CHIEF FINANCIAL OFFICER,CARDIFF EXECUTIVE CENTRE LTD,479332,1.73,864497378
BEIS,Met Office,2023-05-03,06 ACCOMMODATION,CHIEF FINANCIAL OFFICER,CARDIFF EXECUTIVE CENTRE LTD,479209,2470,864497378
BEIS,Met Office,2023-05-23,06 ACCOMMODATION,CHIEF FINANCIAL OFFICER,CBRE MANAGED SERVICES LTD,480030,1,853936883
BEIS,Met Office,2023-05-23,06 ACCOMMODATION,CHIEF FINANCIAL OFFICER,CBRE MANAGED SERVICES LTD,480032,1,853936883
BEIS,Met Office,2023-05-25,06 ACCOMMODATION,CHIEF FINANCIAL OFFICER,CBRE MANAGED SERVICES LTD,480158,1,853936883
BEIS,Met Office,2023-05-25,06 ACCOMMODATION,CHIEF FINANCIAL OFFICER,CBRE MANAGED SERVICES LTD,480159,1,853936883
BEIS,Met Office,2023-05-02,06 ACCOMMODATION,CHIEF FINANCIAL OFFICER,CBRE MANAGED SERVICES LTD,478961,1620.83,853936883
BEIS,Met Office,2023-05-23,FIXTURE & FITTINGS,CHIEF FINANCIAL OFFICER,CBRE MANAGED SERVICES LTD,480034,2241,853936883
BEIS,Met Office,2023-05-02,06 ACCOMMODATION,CHIEF FINANCIAL OFFICER,CBRE MANAGED SERVICES LTD,478961,6614.3,853936883
BEIS,Met Office,2023-05-25,06 ACCOMMODATION,CHIEF FINANCIAL OFFICER,CBRE MANAGED SERVICES LTD,480159,16481.1,853936883
BEIS,Met Office,2023-05-23,06 ACCOMMODATION,CHIEF FINANCIAL OFFICER,CBRE MANAGED SERVICES LTD,480036,20012.16,853936883
BEIS,Met Office,2023-05-26,PLANT AND EQUIPMENT,CHIEF FINANCIAL OFFICER,CBRE MANAGED SERVICES LTD,480031,24250,853936883
BEIS,Met Office,2023-05-02,06 ACCOMMODATION,CHIEF FINANCIAL OFFICER,CBRE MANAGED SERVICES LTD,478957,27651.84,853936883
BEIS,Met Office,2023-05-25,06 ACCOMMODATION,CHIEF FINANCIAL OFFICER,CBRE MANAGED SERVICES LTD,480158,27660.84,853936883
BEIS,Met Office,2023-05-23,06 ACCOMMODATION,CHIEF FINANCIAL OFFICER,CBRE MANAGED SERVICES LTD,480035,29153.52,853936883
BEIS,Met Office,2023-05-23,06 ACCOMMODATION,CHIEF FINANCIAL OFFICER,CBRE MANAGED SERVICES LTD,480030,29637.36,853936883
BEIS,Met Office,2023-05-23,06 ACCOMMODATION,CHIEF FINANCIAL OFFICER,CBRE MANAGED SERVICES LTD,480033,60568.31,853936883
BEIS,Met Office,2023-05-26,PLANT AND EQUIPMENT,CHIEF FINANCIAL OFFICER,CBRE MANAGED SERVICES LTD,480031,130376.62,853936883
BEIS,Met Office,2023-05-09,06 ACCOMMODATION,CHIEF FINANCIAL OFFICER,CBRE MANAGED SERVICES LTD,479484,149176.92,853936883
BEIS,Met Office,2023-05-23,06 ACCOMMODATION,CHIEF FINANCIAL OFFICER,CBRE MANAGED SERVICES LTD,480032,154755.15,853936883
BEIS,Met Office,2023-05-17,08 SOFTWARE LICENCES,CHIEF FINANCIAL OFFICER,CEMAR,479871,850,915042161
BEIS,Met Office,2023-05-16,07 EQUIPMENT,CHIEF FINANCIAL OFFICER,COMPUTACENTER (UK) LTD,479705,339.03,490334648
BEIS,Met Office,2023-05-03,07 EQUIPMENT,CHIEF FINANCIAL OFFICER,COMPUTACENTER (UK) LTD,479229,904.44,490334648
BEIS,Met Office,2023-05-19,07 EQUIPMENT,CHIEF FINANCIAL OFFICER,COMPUTACENTER (UK) LTD,479880,2954.7,490334648
BEIS,Met Office,2023-05-31,06 ACCOMMODATION,CHIEF FINANCIAL OFFICER,D&G OFFICE SERVICES LTD,480269,432,272997547
BEIS,Met Office,2023-05-31,06 ACCOMMODATION,CHIEF FINANCIAL OFFICER,D&G OFFICE SERVICES LTD,480269,432,272997547
BEIS,Met Office,2023-05-23,06 ACCOMMODATION,CHIEF FINANCIAL OFFICER,DARD CORPORATE ACCOUNT,480047,116.34,-
BEIS,Met Office,2023-05-10,13 MISCELLANEOUS,CHIEF FINANCIAL OFFICER,DEMSTAR BUSINESS SOLUTIONS LTD,24860,117.79,10156145J
BEIS,Met Office,2023-05-10,13 MISCELLANEOUS,CHIEF FINANCIAL OFFICER,DEMSTAR BUSINESS SOLUTIONS LTD,24858,128.71,10156145J
BEIS,Met Office,2023-05-10,13 MISCELLANEOUS,CHIEF FINANCIAL OFFICER,DEMSTAR BUSINESS SOLUTIONS LTD,24859,149.78,10156145J
BEIS,Met Office,2023-05-31,13 MISCELLANEOUS,CHIEF FINANCIAL OFFICER,DEMSTAR BUSINESS SOLUTIONS LTD,24862,182.5,10156145J
BEIS,Met Office,2023-05-18,11 SERVICES,CHIEF FINANCIAL OFFICER,DUN & BRADSTREET LTD,479884,28821,505189158
BEIS,Met Office,2023-05-05,13 MISCELLANEOUS,CHIEF FINANCIAL OFFICER,DWYFOR COFFEE COMPANY LTD,479122,-15.88,559811116
BEIS,Met Office,2023-05-05,13 MISCELLANEOUS,CHIEF FINANCIAL OFFICER,DWYFOR COFFEE COMPANY LTD,479247,32.6,559811116
BEIS,Met Office,2023-05-05,13 MISCELLANEOUS,CHIEF FINANCIAL OFFICER,EAST ANGLIAN WATER COOLER CO,479206,25.25,676668178
BEIS,Met Office,2023-05-02,13 MISCELLANEOUS,CHIEF FINANCIAL OFFICER,EDEN SPRINGS UK LTD,479065,586.35,232160411
BEIS,Met Office,2023-05-02,13 MISCELLANEOUS,CHIEF FINANCIAL OFFICER,EDEN SPRINGS UK LTD,479183,728.84,232160411
BEIS,Met Office,2023-05-23,06 ACCOMMODATION,CHIEF FINANCIAL OFFICER,EDF ENERGY CUSTOMERS PLC,480040,-463177.06,523041202
BEIS,Met Office,2023-05-05,06 ACCOMMODATION,CHIEF FINANCIAL OFFICER,EDF ENERGY CUSTOMERS PLC,479178,-144411.52,523041202
BEIS,Met Office,2023-05-05,06 ACCOMMODATION,CHIEF FINANCIAL OFFICER,EDF ENERGY CUSTOMERS PLC,479179,-88052.09,523041202
BEIS,Met Office,2023-05-05,06 ACCOMMODATION,CHIEF FINANCIAL OFFICER,EDF ENERGY CUSTOMERS PLC,479181,-75103.54,523041202
BEIS,Met Office,2023-05-05,06 ACCOMMODATION,CHIEF FINANCIAL OFFICER,EDF ENERGY CUSTOMERS PLC,479184,6131.32,523041202
BEIS,Met Office,2023-05-05,06 ACCOMMODATION,CHIEF FINANCIAL OFFICER,EDF ENERGY CUSTOMERS PLC,479189,6812.01,523041202
BEIS,Met Office,2023-05-05,06 ACCOMMODATION,CHIEF FINANCIAL OFFICER,EDF ENERGY CUSTOMERS PLC,479185,7561.87,523041202
BEIS,Met Office,2023-05-05,06 ACCOMMODATION,CHIEF FINANCIAL OFFICER,EDF ENERGY CUSTOMERS PLC,479170,26779.53,523041202
BEIS,Met Office,2023-05-05,06 ACCOMMODATION,CHIEF FINANCIAL OFFICER,EDF ENERGY CUSTOMERS PLC,479186,31624.6,523041202
BEIS,Met Office,2023-05-19,06 ACCOMMODATION,CHIEF FINANCIAL OFFICER,EDF ENERGY CUSTOMERS PLC,479866,36129.42,523041202
BEIS,Met Office,2023-05-05,06 ACCOMMODATION,CHIEF FINANCIAL OFFICER,EDF ENERGY CUSTOMERS PLC,479180,74348.26,523041202
BEIS,Met Office,2023-05-05,06 ACCOMMODATION,CHIEF FINANCIAL OFFICER,EDF ENERGY CUSTOMERS PLC,479176,86967.19,523041202
BEIS,Met Office,2023-05-05,06 ACCOMMODATION,CHIEF FINANCIAL OFFICER,EDF ENERGY CUSTOMERS PLC,479174,142930.02,523041202
BEIS,Met Office,2023-05-23,06 ACCOMMODATION,CHIEF FINANCIAL OFFICER,EDF ENERGY CUSTOMERS PLC,480072,165537.66,523041202
BEIS,Met Office,2023-05-16,06 ACCOMMODATION,CHIEF FINANCIAL OFFICER,EDF ENERGY CUSTOMERS PLC,479574,197877.54,523041202
BEIS,Met Office,2023-05-16,06 ACCOMMODATION,CHIEF FINANCIAL OFFICER,EDF ENERGY CUSTOMERS PLC,479576,203000.16,523041202
BEIS,Met Office,2023-05-23,06 ACCOMMODATION,CHIEF FINANCIAL OFFICER,EDF ENERGY CUSTOMERS PLC,480041,463177.04,523041202
BEIS,Met Office,2023-05-16,06 ACCOMMODATION,CHIEF FINANCIAL OFFICER,EDF ENERGY CUSTOMERS PLC,479575,579132.42,523041202
BEIS,Met Office,2023-05-16,11 SERVICES,CHIEF FINANCIAL OFFICER,EDSON TIGER LTD,479787,3600,166910983
BEIS,Met Office,2023-05-03,11 SERVICES,CHIEF FINANCIAL OFFICER,EDSON TIGER LTD,479245,8250,166910983
BEIS,Met Office,2023-05-03,11 SERVICES,CHIEF FINANCIAL OFFICER,EIR,24815,57.3,4736919B
BEIS,Met Office,2023-05-31,11 SERVICES,CHIEF FINANCIAL OFFICER,EIR,24917,58.87,4736919B
BEIS,Met Office,2023-05-31,03 STAFF COSTS T&S,CHIEF FINANCIAL OFFICER,ENTERPRISE RENT A CAR UK LTD,480249,548.8,215557314
BEIS,Met Office,2023-05-02,03 STAFF COSTS T&S,CHIEF FINANCIAL OFFICER,ENTERPRISE RENT A CAR UK LTD,479171,857.24,215557314
BEIS,Met Office,2023-05-16,03 STAFF COSTS T&S,CHIEF FINANCIAL OFFICER,ENTERPRISE RENT A CAR UK LTD,479793,2022.5,215557314
BEIS,Met Office,2023-05-31,03 STAFF COSTS T&S,CHIEF FINANCIAL OFFICER,ENTERPRISE RENT A CAR UK LTD,480246,2535.89,215557314
BEIS,Met Office,2023-05-03,03 STAFF COSTS T&S,CHIEF FINANCIAL OFFICER,ENTERPRISE RENT A CAR UK LTD,479295,2656.29,215557314
BEIS,Met Office,2023-05-24,03 STAFF COSTS T&S,CHIEF FINANCIAL OFFICER,ENTERPRISE RENT A CAR UK LTD,480038,3461.4,215557314
BEIS,Met Office,2023-05-10,03 STAFF COSTS T&S,CHIEF FINANCIAL OFFICER,ENTERPRISE RENT A CAR UK LTD,479573,4380.84,215557314
BEIS,Met Office,2023-05-09,06 ACCOMMODATION,CHIEF FINANCIAL OFFICER,Exeter City Council,479440,5894.44,142335594
BEIS,Met Office,2023-05-10,11 SERVICES,CHIEF FINANCIAL OFFICER,EXPONENTIAL-E,479561,2281.82,GB798572653
BEIS,Met Office,2023-05-05,06 ACCOMMODATION,CHIEF FINANCIAL OFFICER,FAIR ISLE ELECTRICITY COMPANY LTD,479225,150.44,774548783
BEIS,Met Office,2023-05-17,06 ACCOMMODATION,CHIEF FINANCIAL OFFICER,FMS INTERIOR SERVICES LTD,479885,350,922056940
BEIS,Met Office,2023-05-17,06 ACCOMMODATION,CHIEF FINANCIAL OFFICER,FMS INTERIOR SERVICES LTD,479826,3518.25,922056940
BEIS,Met Office,2023-05-16,11 SERVICES,CHIEF FINANCIAL OFFICER,GAMMA BUSINESS COMMUNICATIONS LTD,479708,570.83,823820344
BEIS,Met Office,2023-05-31,11 SERVICES,CHIEF FINANCIAL OFFICER,GAMMA TELECOM LTD,480174,27100.37,823820344
BEIS,Met Office,2023-05-16,11 SERVICES,CHIEF FINANCIAL OFFICER,GB GROUP PLC,479649,98.75,539716218
BEIS,Met Office,2023-05-16,11 SERVICES,CHIEF FINANCIAL OFFICER,GB GROUP PLC,479674,452.41,539716218
BEIS,Met Office,2023-05-16,11 SERVICES,CHIEF FINANCIAL OFFICER,GIBRALTAR NYNEX COMMUNICATIONS LTD,479717,660,NOVAT
BEIS,Met Office,2023-05-25,06 ACCOMMODATION,CHIEF FINANCIAL OFFICER,GOVERNMENT PROPERTY AGENCY,480127,10243.01,888 8508 47
BEIS,Met Office,2023-05-10,06 ACCOMMODATION,CHIEF FINANCIAL OFFICER,GRS BUILDING SERVICES SOUTH-WEST,479643,2446.13,-
BEIS,Met Office,2023-05-03,06 ACCOMMODATION,CHIEF FINANCIAL OFFICER,GRS BUILDING SERVICES SOUTH-WEST,479231,9268.37,-
BEIS,Met Office,2023-05-16,11 SERVICES,CHIEF FINANCIAL OFFICER,JERSEY TELECOM,479721,1293.72,NOTVATREG
BEIS,Met Office,2023-05-25,06 ACCOMMODATION,CHIEF FINANCIAL OFFICER,JR FLAT ROOFING,480156,800,-
BEIS,Met Office,2023-05-23,06 ACCOMMODATION,CHIEF FINANCIAL OFFICER,Landmark Information Group Ltd,478909,33.59,634509735
BEIS,Met Office,2023-05-05,11 SERVICES,CHIEF FINANCIAL OFFICER,LEASEDRIVE RENTAL MANAGEMENT LTD,479363,533.83,733546040
BEIS,Met Office,2023-05-16,11 SERVICES,CHIEF FINANCIAL OFFICER,LHR BUSINESS SUPPORT CENTRE LTD,479796,46.44,927365404
BEIS,Met Office,2023-05-05,11 SERVICES,CHIEF FINANCIAL OFFICER,LICENCE BUREAU LTD,479360,422.1,820219467
BEIS,Met Office,2023-05-24,08 SOFTWARE LICENCES,CHIEF FINANCIAL OFFICER,LOGICALIS UK Limited,479485,7105.79,864475392
BEIS,Met Office,2023-05-24,08 SOFTWARE LICENCES,CHIEF FINANCIAL OFFICER,LOGICALIS UK Limited,479485,68127.67,864475392
BEIS,Met Office,2023-05-22,06 ACCOMMODATION,CHIEF FINANCIAL OFFICER,MARK EDWARDS,479825,200,-
BEIS,Met Office,2023-05-12,06 ACCOMMODATION,CHIEF FINANCIAL OFFICER,Mitie Landscapes Ltd,479129,462,GB 416 706 654
BEIS,Met Office,2023-05-05,06 ACCOMMODATION,CHIEF FINANCIAL OFFICER,Mitie Landscapes Ltd,479130,1100,GB 416 706 654
BEIS,Met Office,2023-05-09,06 ACCOMMODATION,CHIEF FINANCIAL OFFICER,MITIE SECURITY LTD,479452,45,416706654
BEIS,Met Office,2023-05-09,11 SERVICES,CHIEF FINANCIAL OFFICER,MITIE SECURITY LTD,479454,57.87,416706654
BEIS,Met Office,2023-05-02,11 SERVICES,CHIEF FINANCIAL OFFICER,MITIE SECURITY LTD,478158,139.6,416706654
BEIS,Met Office,2023-05-31,11 SERVICES,CHIEF FINANCIAL OFFICER,MITIE SECURITY LTD,480220,450,416706654
BEIS,Met Office,2023-05-09,06 ACCOMMODATION,CHIEF FINANCIAL OFFICER,MITIE SECURITY LTD,479453,1147.5,416706654
BEIS,Met Office,2023-05-09,11 SERVICES,CHIEF FINANCIAL OFFICER,MITIE SECURITY LTD,479455,1408.17,416706654
BEIS,Met Office,2023-05-30,11 SERVICES,CHIEF FINANCIAL OFFICER,MITIE SECURITY LTD,480228,3487,416706654
BEIS,Met Office,2023-05-02,11 SERVICES,CHIEF FINANCIAL OFFICER,MITIE SECURITY LTD,479068,3488,416706654
BEIS,Met Office,2023-05-02,11 SERVICES,CHIEF FINANCIAL OFFICER,MITIE SECURITY LTD,479068,8137.02,416706654
BEIS,Met Office,2023-05-30,11 SERVICES,CHIEF FINANCIAL OFFICER,MITIE SECURITY LTD,480228,8138.02,416706654
BEIS,Met Office,2023-05-02,11 SERVICES,CHIEF FINANCIAL OFFICER,MITIE SECURITY LTD,479069,23148.5,416706654
BEIS,Met Office,2023-05-30,11 SERVICES,CHIEF FINANCIAL OFFICER,MITIE SECURITY LTD,480229,23148.5,416706654
BEIS,Met Office,2023-05-16,06 ACCOMMODATION,CHIEF FINANCIAL OFFICER,MOUNT CHARLES GROUP LTD,479816,496.27,517116274
BEIS,Met Office,2023-05-05,13 MISCELLANEOUS,CHIEF FINANCIAL OFFICER,National Audit Office,475903,-30,417632457
BEIS,Met Office,2023-05-05,11 SERVICES,CHIEF FINANCIAL OFFICER,National Audit Office,479361,51500,417632457
BEIS,Met Office,2023-05-02,13 MISCELLANEOUS,CHIEF FINANCIAL OFFICER,NORSCOTT VENDING SERVICES LTD,479089,77.7,751402071
BEIS,Met Office,2023-05-12,13 MISCELLANEOUS,CHIEF FINANCIAL OFFICER,NORSCOTT VENDING SERVICES LTD,479644,85,751402071
BEIS,Met Office,2023-05-05,06 ACCOMMODATION,CHIEF FINANCIAL OFFICER,NORTH WARWICKSHIRE BOROUGH COUNCIL,479427,835.83,N/A
BEIS,Met Office,2023-05-18,06 ACCOMMODATION,CHIEF FINANCIAL OFFICER,OCS Group UK Limited,479240,152746.75,GB238034379
BEIS,Met Office,2023-05-05,11 SERVICES,CHIEF FINANCIAL OFFICER,OPEN TEXT UK LTD,479388,100,837871308
BEIS,Met Office,2023-05-17,06 ACCOMMODATION,CHIEF FINANCIAL OFFICER,PERTH AND KINROSS COUNCIL,479724,7171.2,-
BEIS,Met Office,2023-05-17,06 ACCOMMODATION,CHIEF FINANCIAL OFFICER,PLYMOUTH CITY COUNCIL NDR,479827,3720.04,-
BEIS,Met Office,2023-05-26,06 ACCOMMODATION,CHIEF FINANCIAL OFFICER,POD POINT,479022,700,278743455
BEIS,Met Office,2023-05-26,06 ACCOMMODATION,CHIEF FINANCIAL OFFICER,POD POINT,479022,700,278743455
BEIS,Met Office,2023-05-26,06 ACCOMMODATION,CHIEF FINANCIAL OFFICER,POD POINT,479022,915.41,278743455
BEIS,Met Office,2023-05-05,11 SERVICES,CHIEF FINANCIAL OFFICER,POSTURITE (UK) LTD,479227,50,583565114
BEIS,Met Office,2023-05-22,11 SERVICES,CHIEF FINANCIAL OFFICER,POSTURITE (UK) LTD,479791,50,583565114
BEIS,Met Office,2023-05-19,11 SERVICES,CHIEF FINANCIAL OFFICER,POSTURITE (UK) LTD,479792,50,583565114
BEIS,Met Office,2023-05-05,11 SERVICES,CHIEF FINANCIAL OFFICER,POSTURITE (UK) LTD,479226,227.72,583565114
BEIS,Met Office,2023-05-05,11 SERVICES,CHIEF FINANCIAL OFFICER,POSTURITE (UK) LTD,479121,942.51,583565114
BEIS,Met Office,2023-05-26,06 ACCOMMODATION,CHIEF FINANCIAL OFFICER,POWER NI ENERGY LTD,480170,113.05,617518142
BEIS,Met Office,2023-05-30,11 SERVICES,CHIEF FINANCIAL OFFICER,PRIMETECH (UK) LTD,480231,2220,694212039
BEIS,Met Office,2023-05-02,03 STAFF COSTS T&S,CHIEF FINANCIAL OFFICER,RAINBOW CITY TAXIS,479202,51.21,724295039
BEIS,Met Office,2023-05-05,11 SERVICES,CHIEF FINANCIAL OFFICER,REDACTED � PERSONAL DATA,479389,77.52,729159704
BEIS,Met Office,2023-05-17,11 SERVICES,CHIEF FINANCIAL OFFICER,REDACTED � PERSONAL DATA,479865,450,-
BEIS,Met Office,2023-05-22,06 ACCOMMODATION,CHIEF FINANCIAL OFFICER,REDACTED � PERSONAL DATA,480021,500,245894718
BEIS,Met Office,2023-05-17,06 ACCOMMODATION,CHIEF FINANCIAL OFFICER,REDACTED � PERSONAL DATA,479251,520,-
BEIS,Met Office,2023-05-17,11 SERVICES,CHIEF FINANCIAL OFFICER,REDACTED � PERSONAL DATA,479864,550,-
BEIS,Met Office,2023-05-05,11 SERVICES,CHIEF FINANCIAL OFFICER,REDACTED � PERSONAL DATA,479390,1663,729159704
BEIS,Met Office,2023-05-22,06 ACCOMMODATION,CHIEF FINANCIAL OFFICER,REDACTED � PERSONAL DATA,480021,2500,245894718
BEIS,Met Office,2023-05-30,06 ACCOMMODATION,CHIEF FINANCIAL OFFICER,RIVER RIDGE,480215,50,176286083
BEIS,Met Office,2023-05-12,06 ACCOMMODATION,CHIEF FINANCIAL OFFICER,RIVER RIDGE,479642,133,176286083
BEIS,Met Office,2023-05-05,06 ACCOMMODATION,CHIEF FINANCIAL OFFICER,RIVEROAK MSE LIMITED,479190,914.52,326 084 707
BEIS,Met Office,2023-05-05,06 ACCOMMODATION,CHIEF FINANCIAL OFFICER,RIVEROAK MSE LIMITED,479326,2049.19,326 084 707
BEIS,Met Office,2023-05-05,11 SERVICES,CHIEF FINANCIAL OFFICER,SADDLES & PADDLES EXETER LTD,479300,106.11,152264528
BEIS,Met Office,2023-05-12,06 ACCOMMODATION,CHIEF FINANCIAL OFFICER,SAFESTORE LTD,479706,3430.33,722887607
BEIS,Met Office,2023-05-22,06 ACCOMMODATION,CHIEF FINANCIAL OFFICER,Scottish Government,479999,36690,888842551
BEIS,Met Office,2023-05-19,06 ACCOMMODATION,CHIEF FINANCIAL OFFICER,Severn Trent Water Ltd,479950,221.85,486985565
BEIS,Met Office,2023-05-12,06 ACCOMMODATION,CHIEF FINANCIAL OFFICER,SHETLAND CLEANING SERVICES,479722,831.13,430028404
BEIS,Met Office,2023-05-17,06 ACCOMMODATION,CHIEF FINANCIAL OFFICER,SHETLAND GRASSCUTTING,479876,95,978367258
BEIS,Met Office,2023-05-17,06 ACCOMMODATION,CHIEF FINANCIAL OFFICER,Shropshire Council,479728,12849.25,-
BEIS,Met Office,2023-05-12,06 ACCOMMODATION,CHIEF FINANCIAL OFFICER,South West Water Ltd,479720,247.65,236873674
BEIS,Met Office,2023-05-17,06 ACCOMMODATION,CHIEF FINANCIAL OFFICER,South West Water Ltd,479782,5139.98,236873674
BEIS,Met Office,2023-05-22,06 ACCOMMODATION,CHIEF FINANCIAL OFFICER,ST MODWEN VENTURES LTD,480011,34.16,975081008
BEIS,Met Office,2023-05-22,06 ACCOMMODATION,CHIEF FINANCIAL OFFICER,ST MODWEN VENTURES LTD,480012,34.91,975081008
BEIS,Met Office,2023-05-22,06 ACCOMMODATION,CHIEF FINANCIAL OFFICER,ST MODWEN VENTURES LTD,480009,750,975081008
BEIS,Met Office,2023-05-30,PLANT AND EQUIPMENT,CHIEF FINANCIAL OFFICER,Stewart Morris Partnership Ltd,480236,3825,687720886
BEIS,Met Office,2023-05-10,11 SERVICES,CHIEF FINANCIAL OFFICER,SURE SOUTH ATLANTIC LTD,479578,770,-
BEIS,Met Office,2023-05-17,11 SERVICES,CHIEF FINANCIAL OFFICER,SURE SOUTH ATLANTIC LTD,479878,2124.59,NOVATREG
BEIS,Met Office,2023-05-10,11 SERVICES,CHIEF FINANCIAL OFFICER,SURE SOUTH ATLANTIC LTD,479577,4793,-
BEIS,Met Office,2023-05-17,11 SERVICES,CHIEF FINANCIAL OFFICER,SURE SOUTH ATLANTIC LTD (ST HELENA),479879,1413.5,30005
BEIS,Met Office,2023-05-31,11 SERVICES,CHIEF FINANCIAL OFFICER,SWISSCOM (SCHWEIZ) AG,479597,97.72,-
BEIS,Met Office,2023-05-05,11 SERVICES,CHIEF FINANCIAL OFFICER,TELEFONICA O2 UK LIMITED,479329,55.94,778603785
BEIS,Met Office,2023-05-25,11 SERVICES,CHIEF FINANCIAL OFFICER,TELEFONICA O2 UK LIMITED,480126,55.94,778603785
BEIS,Met Office,2023-05-12,11 SERVICES,CHIEF FINANCIAL OFFICER,TELEFONICA O2 UK LIMITED,479595,3387.56,778603785
BEIS,Met Office,2023-05-17,11 SERVICES,CHIEF FINANCIAL OFFICER,TELIA FINLAND OYJ,24886,215.79,FI14756079
BEIS,Met Office,2023-05-10,06 ACCOMMODATION,CHIEF FINANCIAL OFFICER,TENNIE FACILITIES PROPERTY MANAGEMENT LTD,479605,165.72,982055803
BEIS,Met Office,2023-05-10,06 ACCOMMODATION,CHIEF FINANCIAL OFFICER,THE WOOLLY SHEPHERD,479626,1710,111326371
BEIS,Met Office,2023-05-05,06 ACCOMMODATION,CHIEF FINANCIAL OFFICER,TOP RANK CLEANING SERVICES LTD,479218,950.56,-
BEIS,Met Office,2023-05-22,06 ACCOMMODATION,CHIEF FINANCIAL OFFICER,TOTAL GAS & POWER LIMITED,479953,1346.51,689638949
BEIS,Met Office,2023-05-22,06 ACCOMMODATION,CHIEF FINANCIAL OFFICER,TOTAL GAS & POWER LIMITED,479952,22617.62,689638949
BEIS,Met Office,2023-05-05,13 MISCELLANEOUS,CHIEF FINANCIAL OFFICER,University Of Reading,479373,15.91,200012659
BEIS,Met Office,2023-05-24,06 ACCOMMODATION,CHIEF FINANCIAL OFFICER,V & M MORRIS AND SON,480093,804.9,-
BEIS,Met Office,2023-05-05,11 SERVICES,CHIEF FINANCIAL OFFICER,Vodafone Limited,479446,10.21,569953277
BEIS,Met Office,2023-05-05,11 SERVICES,CHIEF FINANCIAL OFFICER,Vodafone Limited,479447,10.21,569953277
BEIS,Met Office,2023-05-05,11 SERVICES,CHIEF FINANCIAL OFFICER,Vodafone Limited,479448,416.74,569953277
BEIS,Met Office,2023-05-23,06 ACCOMMODATION,CHIEF FINANCIAL OFFICER,Wealden District Council,479951,1322.35,210898561
BEIS,Met Office,2023-05-05,11 SERVICES,CHIEF FINANCIAL OFFICER,WEBEX COMMUNICATIONS UK LTD,479246,209.92,815974302
BEIS,Met Office,2023-05-09,11 SERVICES,CHIEF FINANCIAL OFFICER,WEBEX COMMUNICATIONS UK LTD,479483,209.92,815974302
BEIS,Met Office,2023-05-31,11 SERVICES,CHIEF FINANCIAL OFFICER,WEBEX COMMUNICATIONS UK LTD,480241,209.92,815974302
BEIS,Met Office,2023-05-24,06 ACCOMMODATION,CHIEF FINANCIAL OFFICER,WEST LANCASHIRE BOROUGH COUNCIL,479949,4356.27,-
BEIS,Met Office,2023-05-25,06 ACCOMMODATION,CHIEF FINANCIAL OFFICER,WOKINGHAM BOROUGH COUNCIL,468162,-149.65,-
BEIS,Met Office,2023-05-25,06 ACCOMMODATION,CHIEF FINANCIAL OFFICER,WOKINGHAM BOROUGH COUNCIL,480153,1172.65,-
BEIS,Met Office,2023-05-25,06 ACCOMMODATION,CHIEF FINANCIAL OFFICER,WOKINGHAM BOROUGH COUNCIL,480152,3842.3,-
BEIS,Met Office,2023-05-26,06 ACCOMMODATION,CHIEF FINANCIAL OFFICER,WOKINGHAM BOROUGH COUNCIL,480154,13597.75,-
BEIS,Met Office,2023-05-02,11 SERVICES,CHIEF FINANCIAL OFFICER,WOMBLE BOND DICKINSON (UK) LLP,479120,1680,GB123393627
BEIS,Met Office,2023-05-31,11 SERVICES,CHIEF FINANCIAL OFFICER,WT CONSULTANCY (SW) LTD,479635,7175,223 4662 25
BEIS,Met Office,2023-05-12,11 SERVICES,MARKETS,ACCELERATION EMARKETING,479641,3742.54,848940776
BEIS,Met Office,2023-05-03,11 SERVICES,MARKETS,ADOPSTAR,479228,1250,115036848
BEIS,Met Office,2023-05-10,12 INTERNATIONAL,MARKETS,APPLIED SATELLITE TECHNOLOGY SYSTEMS LTD,479569,34.64,720108683
BEIS,Met Office,2023-05-16,11 SERVICES,MARKETS,BJSS LIMITED,479631,718.75,613295452
BEIS,Met Office,2023-05-03,11 SERVICES,MARKETS,BMG RESEARCH LTD,479193,6525,580 6606 32
BEIS,Met Office,2023-05-02,11 SERVICES,MARKETS,BMG RESEARCH LTD,479194,8695,580 6606 32
BEIS,Met Office,2023-05-03,11 SERVICES,MARKETS,BMG RESEARCH LTD,479193,11656.25,580 6606 32
BEIS,Met Office,2023-05-05,11 SERVICES,MARKETS,DBS FINANCE RECEIPTS CTS,479426,28284.7,888805068
BEIS,Met Office,2023-05-05,11 SERVICES,MARKETS,DBS FINANCE RECEIPTS CTS,479425,43521.86,888805068
BEIS,Met Office,2023-05-23,11 SERVICES,MARKETS,DOD'S GROUP LTD,478435,6400,792067900
BEIS,Met Office,2023-05-05,08 SOFTWARE LICENCES,MARKETS,DOMO INC,479233,17950,-
BEIS,Met Office,2023-05-24,11 SERVICES,MARKETS,ECMWF,24878,-885.47,NOTVATREG
BEIS,Met Office,2023-05-24,11 SERVICES,MARKETS,ECMWF,24787,252.53,NOTVATREG
BEIS,Met Office,2023-05-24,11 SERVICES,MARKETS,ECMWF,24790,263.69,NOTVATREG
BEIS,Met Office,2023-05-24,11 SERVICES,MARKETS,ECMWF,24784,466.13,NOTVATREG
BEIS,Met Office,2023-05-24,11 SERVICES,MARKETS,ECMWF,24799,468.39,NOTVATREG
BEIS,Met Office,2023-05-24,11 SERVICES,MARKETS,ECMWF,24792,559.53,NOTVATREG
BEIS,Met Office,2023-05-24,11 SERVICES,MARKETS,ECMWF,24786,865.93,NOTVATREG
BEIS,Met Office,2023-05-24,11 SERVICES,MARKETS,ECMWF,24794,885.71,NOTVATREG
BEIS,Met Office,2023-05-24,11 SERVICES,MARKETS,ECMWF,24797,994.65,NOTVATREG
BEIS,Met Office,2023-05-24,11 SERVICES,MARKETS,ECMWF,24783,1051.78,NOTVATREG
BEIS,Met Office,2023-05-24,11 SERVICES,MARKETS,ECMWF,24809,1051.78,NOTVATREG
BEIS,Met Office,2023-05-24,11 SERVICES,MARKETS,ECMWF,24812,1544.73,NOTVATREG
BEIS,Met Office,2023-05-24,11 SERVICES,MARKETS,ECMWF,24793,1552.95,NOTVATREG
BEIS,Met Office,2023-05-24,11 SERVICES,MARKETS,ECMWF,24806,1611.43,NOTVATREG
BEIS,Met Office,2023-05-24,11 SERVICES,MARKETS,ECMWF,24791,1897.86,NOTVATREG
BEIS,Met Office,2023-05-24,11 SERVICES,MARKETS,ECMWF,24813,3312.77,NOTVATREG
BEIS,Met Office,2023-05-24,11 SERVICES,MARKETS,ECMWF,24780,4030.62,NOTVATREG
BEIS,Met Office,2023-05-24,11 SERVICES,MARKETS,ECMWF,24807,5936.79,NOTVATREG
BEIS,Met Office,2023-05-24,11 SERVICES,MARKETS,ECMWF,24810,8278.04,NOTVATREG
BEIS,Met Office,2023-05-24,11 SERVICES,MARKETS,ECMWF,24804,8352.27,NOTVATREG
BEIS,Met Office,2023-05-24,11 SERVICES,MARKETS,ECMWF,24800,8419.2,NOTVATREG
BEIS,Met Office,2023-05-24,11 SERVICES,MARKETS,ECMWF,24781,10723.46,NOTVATREG
BEIS,Met Office,2023-05-24,11 SERVICES,MARKETS,ECMWF,24789,12302.23,NOTVATREG
BEIS,Met Office,2023-05-24,11 SERVICES,MARKETS,ECMWF,24801,19105.44,NOTVATREG
BEIS,Met Office,2023-05-24,11 SERVICES,MARKETS,ECMWF,24788,19305.96,NOTVATREG
BEIS,Met Office,2023-05-24,11 SERVICES,MARKETS,ECMWF,24795,20409.15,NOTVATREG
BEIS,Met Office,2023-05-24,11 SERVICES,MARKETS,ECMWF,24785,22364.11,NOTVATREG
BEIS,Met Office,2023-05-24,11 SERVICES,MARKETS,ECMWF,24782,24284.87,NOTVATREG
BEIS,Met Office,2023-05-24,11 SERVICES,MARKETS,ECMWF,24803,29449.77,NOTVATREG
BEIS,Met Office,2023-05-24,11 SERVICES,MARKETS,ECMWF,24798,31132.62,NOTVATREG
BEIS,Met Office,2023-05-24,11 SERVICES,MARKETS,ECMWF,24802,31132.62,NOTVATREG
BEIS,Met Office,2023-05-24,11 SERVICES,MARKETS,ECMWF,24808,31132.62,NOTVATREG
BEIS,Met Office,2023-05-24,11 SERVICES,MARKETS,ECMWF,24811,31132.62,NOTVATREG
BEIS,Met Office,2023-05-03,REVENUE,MARKETS,ECMWF,24814,36040.83,NOTVATREG
BEIS,Met Office,2023-05-24,11 SERVICES,MARKETS,ECMWF,24796,37044.71,NOTVATREG
BEIS,Met Office,2023-05-24,11 SERVICES,MARKETS,ECMWF,24805,49710.33,NOTVATREG
BEIS,Met Office,2023-05-03,11 SERVICES,MARKETS,"IBL SOFTWARE ENGINEERING, SPOL S.R.O.",24754,7371.17,SK2020241883
BEIS,Met Office,2023-05-03,11 SERVICES,MARKETS,"IBL SOFTWARE ENGINEERING, SPOL S.R.O.",24755,7371.17,SK2020241883
BEIS,Met Office,2023-05-17,11 SERVICES,MARKETS,"IBL SOFTWARE ENGINEERING, SPOL S.R.O.",479028,8503.12,SK2020241883
BEIS,Met Office,2023-05-03,08 SOFTWARE LICENCES,MARKETS,"IBL SOFTWARE ENGINEERING, SPOL S.R.O.",24760,1570842.01,SK2020241883
BEIS,Met Office,2023-05-31,11 SERVICES,MARKETS,"INTELLOVATIONS, LLC",11016,1750.34,-
BEIS,Met Office,2023-05-10,11 SERVICES,MARKETS,"INTELLOVATIONS, LLC",11058,4299.39,-
BEIS,Met Office,2023-05-17,11 SERVICES,MARKETS,"INTELLOVATIONS, LLC",10946,26758.26,-
BEIS,Met Office,2023-05-31,12 INTERNATIONAL,MARKETS,MACITECHSY SOLUTIONS,480250,1480,-
BEIS,Met Office,2023-05-22,11 SERVICES,MARKETS,MOMENTUM INCORPORATED,479870,2000,598958541
BEIS,Met Office,2023-05-22,12 INTERNATIONAL,MARKETS,MYACORN LTD,479882,0,-
BEIS,Met Office,2023-05-22,12 INTERNATIONAL,MARKETS,MYACORN LTD,479882,10650.64,-
BEIS,Met Office,2023-05-22,12 INTERNATIONAL,MARKETS,MYACORN LTD,479882,28155.42,-
BEIS,Met Office,2023-05-30,11 SERVICES,MARKETS,NOC INNOVATIONS LIMITED,480230,3525,-
BEIS,Met Office,2023-05-16,11 SERVICES,MARKETS,Plymouth Marine Laboratory,479664,5050,927105830
BEIS,Met Office,2023-05-24,12 INTERNATIONAL,MARKETS,REDACTED � PERSONAL DATA,11070,79.63,-
BEIS,Met Office,2023-05-10,12 INTERNATIONAL,MARKETS,REDACTED � PERSONAL DATA,11048,120.66,-
BEIS,Met Office,2023-05-24,12 INTERNATIONAL,MARKETS,REDACTED � PERSONAL DATA,11070,2735.68,-
BEIS,Met Office,2023-05-10,12 INTERNATIONAL,MARKETS,REDACTED � PERSONAL DATA,11048,2815.31,-
BEIS,Met Office,2023-05-10,REVENUE,MARKETS,SCIENCE & TECHNOLOGY FACILITIES COUNCIL,24687,21032.09,287461957
BEIS,Met Office,2023-05-03,REVENUE,MARKETS,Smhi,24761,380.45,SE202100069601
BEIS,Met Office,2023-05-24,REVENUE,MARKETS,SORBONNE UNIVERSITE,24905,17534.12,FR90130023385
BEIS,Met Office,2023-05-12,11 SERVICES,MARKETS,SPOKE (INTERACTIVE) LTD,479648,770,840156451
BEIS,Met Office,2023-05-17,12 INTERNATIONAL,MARKETS,SWANTECH LOGISTICS LTD,479789,130,769332401
BEIS,Met Office,2023-05-05,11 SERVICES,MARKETS,SWANTECH LOGISTICS LTD,479292,1200,769332401
BEIS,Met Office,2023-05-05,11 SERVICES,MARKETS,SWANTECH LOGISTICS LTD,479293,2400,769332401
BEIS,Met Office,2023-05-25,11 SERVICES,MARKETS,UK FLIGHT SAFETY COMMITTEE,480157,1500,-
BEIS,Met Office,2023-05-17,REVENUE,MARKETS,UKRI,24662,10591.34,GB287461957
BEIS,Met Office,2023-05-05,11 SERVICES,MARKETS,ULTRA ELECTRONICS LTD NUCLEAR CONTROL SYSTEMS,479423,4926.81,123340754
BEIS,Met Office,2023-05-23,11 SERVICES,MARKETS,ULTRA ELECTRONICS LTD NUCLEAR CONTROL SYSTEMS,476954,37912.08,123340754
BEIS,Met Office,2023-05-12,13 MISCELLANEOUS,MARKETS,University Of Bristol,479716,3287.42,991261800
BEIS,Met Office,2023-05-05,11 SERVICES,MARKETS,University Of Leeds,478955,25000,613451470
BEIS,Met Office,2023-05-02,11 SERVICES,MARKETS,WESTPOINT CENTRE (DEVON) LTD,479169,4047.75,585 6015 25
BEIS,Met Office,2023-05-17,11 SERVICES,MARKETS,WORLDPAY (UK) LTD,479725,307.54,991280207
BEIS,Met Office,2023-05-05,11 SERVICES,MARKETS,WORLDPAY LTD,479331,26.75,991280207
BEIS,Met Office,2023-05-22,13 MISCELLANEOUS,OFFICE OF THE CEO,DEVON & CORNWALL BUSINESS COUNCIL,479340,600,768969833
BEIS,Met Office,2023-05-16,11 SERVICES,OFFICE OF THE CEO,Ernst & Young Llp,478340,15633.92,773831408
BEIS,Met Office,2023-05-09,11 SERVICES,OFFICE OF THE CEO,MAZARS LLP,479114,11570,839835673
BEIS,Met Office,2023-05-17,CYCLESCHEME,OTHER,EDENRED UK (CYCLESCHEME),478848,-2199.27,649 503 520
BEIS,Met Office,2023-05-17,CYCLESCHEME,OTHER,EDENRED UK (CYCLESCHEME),479883,8047.19,649 503 520
BEIS,Met Office,2023-05-23,TRADE CREDITORS,OTHER,NATWEST COMMERCIAL CARDS DIVISION,480020,147294.38,N/A
BEIS,Met Office,2023-05-05,11 SERVICES,PEOPLE,ACTIVE LEARNING TEAM LTD,479364,1574.95,-
BEIS,Met Office,2023-05-05,11 SERVICES,PEOPLE,ACTIVE LEARNING TEAM LTD,479244,2800,-
BEIS,Met Office,2023-05-23,11 SERVICES,PEOPLE,ADJUST,480037,725,-
BEIS,Met Office,2023-05-31,11 SERVICES,PEOPLE,ADJUST,480237,995,-
BEIS,Met Office,2023-05-04,13 MISCELLANEOUS,PEOPLE,BROADBEAN TECHNOLOGY LTD,479418,-1662.21,GB184088778
BEIS,Met Office,2023-05-05,13 MISCELLANEOUS,PEOPLE,BROADBEAN TECHNOLOGY LTD,479335,424.71,GB184088778
BEIS,Met Office,2023-05-05,13 MISCELLANEOUS,PEOPLE,BROADBEAN TECHNOLOGY LTD,479333,593.01,GB184088778
BEIS,Met Office,2023-05-05,13 MISCELLANEOUS,PEOPLE,BROADBEAN TECHNOLOGY LTD,479334,1076,GB184088778
BEIS,Met Office,2023-05-05,13 MISCELLANEOUS,PEOPLE,BROADBEAN TECHNOLOGY LTD,479336,23281.25,GB184088778
BEIS,Met Office,2023-05-05,11 SERVICES,PEOPLE,BUSINESS DISABILITY FORUM,479168,4200,GB645620736
BEIS,Met Office,2023-05-10,08 SOFTWARE LICENCES,PEOPLE,CATALYST IT,479362,17145.82,978169262
BEIS,Met Office,2023-05-05,11 SERVICES,PEOPLE,CIVICA UK LIMITED,479443,7503.5,391171065
BEIS,Met Office,2023-05-05,13 MISCELLANEOUS,PEOPLE,EDENRED - CHILDCARE VOUCHERS,479365,9490.5,649 503 520
BEIS,Met Office,2023-05-05,13 MISCELLANEOUS,PEOPLE,EDENRED I&M (IRS VOUCHERS),479391,73225.8,649 503 520
BEIS,Met Office,2023-05-25,13 MISCELLANEOUS,PEOPLE,HEALTH MANAGEMENT LTD,473287,304.82,792250621
BEIS,Met Office,2023-05-10,11 SERVICES,PEOPLE,HOMBURGER AG,479491,6813.31,CHE-100.739.353
BEIS,Met Office,2023-05-23,04 CONTRACTORS,PEOPLE,MATRIX SCM LIMITED,479943,143795.4,249 5734 68
BEIS,Met Office,2023-05-12,04 CONTRACTORS,PEOPLE,MATRIX SCM LIMITED,479700,177705.67,249 5734 68
BEIS,Met Office,2023-05-26,04 CONTRACTORS,PEOPLE,MATRIX SCM LIMITED,480169,195692.3,249 5734 68
BEIS,Met Office,2023-05-02,04 CONTRACTORS,PEOPLE,MATRIX SCM LIMITED,479127,207319.3,249 5734 68
BEIS,Met Office,2023-05-05,04 CONTRACTORS,PEOPLE,MATRIX SCM LIMITED,479372,242527.98,249 5734 68
BEIS,Met Office,2023-05-10,11 SERVICES,PEOPLE,MERCER LIMITED,479590,1200,GB 244 2517 79
BEIS,Met Office,2023-05-03,11 SERVICES,PEOPLE,MOMENTUM INCORPORATED,479219,13320,598958541
BEIS,Met Office,2023-05-12,11 SERVICES,PEOPLE,PTR ASSOCIATES LTD,479640,480,532192956
BEIS,Met Office,2023-05-12,11 SERVICES,PEOPLE,PTR ASSOCIATES LTD,479640,4350,532192956
BEIS,Met Office,2023-05-17,11 SERVICES,PEOPLE,QA LTD,478952,7784,864455303
BEIS,Met Office,2023-05-05,11 SERVICES,PEOPLE,REDACTED � PERSONAL DATA,479299,467,143043312
BEIS,Met Office,2023-05-05,11 SERVICES,PEOPLE,REDACTED � PERSONAL DATA,479297,825,143043312
BEIS,Met Office,2023-05-05,11 SERVICES,PEOPLE,REDACTED � PERSONAL DATA,479298,3585,143043312
BEIS,Met Office,2023-05-05,11 SERVICES,PEOPLE,REDACTED � PERSONAL DATA,479392,6320.5,143043312
BEIS,Met Office,2023-05-12,11 SERVICES,PEOPLE,RESTORE RECORDS MANAGEMENT,479650,13.18,843 863011
BEIS,Met Office,2023-05-18,11 SERVICES,PEOPLE,RIVER TRAINING AND HR,479934,800,-
BEIS,Met Office,2023-05-12,11 SERVICES,PEOPLE,SKILLTEC LIMITED,479646,6800,909833105
BEIS,Met Office,2023-05-12,11 SERVICES,PEOPLE,SKILLTEC LIMITED,479647,8350,909833105
BEIS,Met Office,2023-05-05,11 SERVICES,PEOPLE,SWANTECH LOGISTICS LTD,479291,900,769332401
BEIS,Met Office,2023-05-09,11 SERVICES,PEOPLE,TP HEALTH LTD,479367,1105,883064608
BEIS,Met Office,2023-05-24,11 SERVICES,PEOPLE,TP HEALTH LTD,480029,1105,883064608
BEIS,Met Office,2023-05-09,11 SERVICES,PEOPLE,TP HEALTH LTD,479369,1236,883064608
BEIS,Met Office,2023-05-09,11 SERVICES,PEOPLE,TP HEALTH LTD,479366,1272.7,883064608
BEIS,Met Office,2023-05-09,11 SERVICES,PEOPLE,TP HEALTH LTD,479368,1430,883064608
BEIS,Met Office,2023-05-26,11 SERVICES,PEOPLE,TP HEALTH LTD,480028,3339.7,883064608
BEIS,Met Office,2023-05-26,11 SERVICES,PEOPLE,University Of Exeter,480171,7500,142047795
BEIS,Met Office,2023-05-09,13 MISCELLANEOUS,PEOPLE,YOTI LTD,479480,25.2,GB199947617
BEIS,Met Office,2023-05-03,08 SOFTWARE LICENCES,PROGRAMMES,ACTIVESTATE SOFTWARE INC.,11049,60328.14,-
BEIS,Met Office,2023-05-16,11 SERVICES,PROGRAMMES,BAE SYSTEMS APPLIED INTELLIGENCE LIMITED,479790,2431.89,GB641407169
BEIS,Met Office,2023-05-17,11 SERVICES,PROGRAMMES,BAE SYSTEMS APPLIED INTELLIGENCE LIMITED,479710,3752,GB641407169
BEIS,Met Office,2023-05-05,11 SERVICES,PROGRAMMES,BAE SYSTEMS APPLIED INTELLIGENCE LIMITED,478418,4221,GB641407169
BEIS,Met Office,2023-05-17,11 SERVICES,PROGRAMMES,BAE SYSTEMS APPLIED INTELLIGENCE LIMITED,479710,8100,GB641407169
BEIS,Met Office,2023-05-05,11 SERVICES,PROGRAMMES,BAE SYSTEMS APPLIED INTELLIGENCE LIMITED,478417,8442,GB641407169
BEIS,Met Office,2023-05-16,11 SERVICES,PROGRAMMES,BAE SYSTEMS APPLIED INTELLIGENCE LIMITED,479712,9480,GB641407169
BEIS,Met Office,2023-05-17,11 SERVICES,PROGRAMMES,BAE SYSTEMS APPLIED INTELLIGENCE LIMITED,479710,12194,GB641407169
BEIS,Met Office,2023-05-17,11 SERVICES,PROGRAMMES,BAE SYSTEMS APPLIED INTELLIGENCE LIMITED,479710,13132,GB641407169
BEIS,Met Office,2023-05-17,11 SERVICES,PROGRAMMES,BAE SYSTEMS APPLIED INTELLIGENCE LIMITED,479710,15946,GB641407169
BEIS,Met Office,2023-05-17,11 SERVICES,PROGRAMMES,BAE SYSTEMS APPLIED INTELLIGENCE LIMITED,479710,16415,GB641407169
BEIS,Met Office,2023-05-17,11 SERVICES,PROGRAMMES,BAE SYSTEMS APPLIED INTELLIGENCE LIMITED,479710,16884,GB641407169
BEIS,Met Office,2023-05-17,11 SERVICES,PROGRAMMES,BAE SYSTEMS APPLIED INTELLIGENCE LIMITED,479710,16884,GB641407169
BEIS,Met Office,2023-05-17,11 SERVICES,PROGRAMMES,BAE SYSTEMS APPLIED INTELLIGENCE LIMITED,479710,17445,GB641407169
BEIS,Met Office,2023-05-17,11 SERVICES,PROGRAMMES,BAE SYSTEMS APPLIED INTELLIGENCE LIMITED,479710,18608,GB641407169
BEIS,Met Office,2023-05-17,11 SERVICES,PROGRAMMES,BAE SYSTEMS APPLIED INTELLIGENCE LIMITED,479710,19768,GB641407169
BEIS,Met Office,2023-05-17,11 SERVICES,PROGRAMMES,BAE SYSTEMS APPLIED INTELLIGENCE LIMITED,479710,19771,GB641407169
BEIS,Met Office,2023-05-17,11 SERVICES,PROGRAMMES,BAE SYSTEMS APPLIED INTELLIGENCE LIMITED,479710,20497.88,GB641407169
BEIS,Met Office,2023-05-16,11 SERVICES,PROGRAMMES,BAE SYSTEMS APPLIED INTELLIGENCE LIMITED,479709,20934,GB641407169
BEIS,Met Office,2023-05-31,13 MISCELLANEOUS,PROGRAMMES,BANNER GROUP LIMITED,480240,28.88,GB391085740
BEIS,Met Office,2023-05-10,11 SERVICES,PROGRAMMES,BJSS LIMITED,479629,15625,613295452
BEIS,Met Office,2023-05-10,11 SERVICES,PROGRAMMES,BJSS LIMITED,479633,22550,613295452
BEIS,Met Office,2023-05-10,11 SERVICES,PROGRAMMES,BJSS LIMITED,479634,39350,613295452
BEIS,Met Office,2023-05-12,11 SERVICES,PROGRAMMES,BJSS LIMITED,479639,59981.25,613295452
BEIS,Met Office,2023-05-16,11 SERVICES,PROGRAMMES,BJSS LIMITED,479632,96700,613295452
BEIS,Met Office,2023-05-12,11 SERVICES,PROGRAMMES,Cgi It Uk Limited,479579,30287,232615194
BEIS,Met Office,2023-05-12,11 SERVICES,PROGRAMMES,Cgi It Uk Limited,479581,38642,232615194
BEIS,Met Office,2023-05-12,11 SERVICES,PROGRAMMES,Cgi It Uk Limited,479580,70046,232615194
BEIS,Met Office,2023-05-03,11 SERVICES,PROGRAMMES,Esri (Uk) Ltd,479205,1070.4,787430791
BEIS,Met Office,2023-05-03,11 SERVICES,PROGRAMMES,Esri (Uk) Ltd,479205,1118,787430791
BEIS,Met Office,2023-05-03,11 SERVICES,PROGRAMMES,Esri (Uk) Ltd,479205,2227.5,787430791
BEIS,Met Office,2023-05-03,11 SERVICES,PROGRAMMES,Esri (Uk) Ltd,479205,5352,787430791
BEIS,Met Office,2023-05-03,11 SERVICES,PROGRAMMES,Esri (Uk) Ltd,479205,24250.53,787430791
BEIS,Met Office,2023-05-05,11 SERVICES,PROGRAMMES,Esri (Uk) Ltd,479341,64431.37,787430791
BEIS,Met Office,2023-05-02,03 STAFF COSTS T&S,PROGRAMMES,EXETER TRAVEL CLINIC,479197,15,-
BEIS,Met Office,2023-05-05,11 SERVICES,PROGRAMMES,FCDO,479437,542.73,888813560
BEIS,Met Office,2023-05-05,11 SERVICES,PROGRAMMES,FCDO,479436,8403.4,888813560
BEIS,Met Office,2023-05-05,11 SERVICES,PROGRAMMES,FCDO,479434,10558.51,888813560
BEIS,Met Office,2023-05-24,11 SERVICES,PROGRAMMES,FUNDACAO ARTHUR BERNARDES - FUNARBE,480122,262459.52,-
BEIS,Met Office,2023-05-16,11 SERVICES,PROGRAMMES,GAMMA TELECOM LTD,479814,4463,823820344
BEIS,Met Office,2023-05-16,11 SERVICES,PROGRAMMES,GAMMA TELECOM LTD,479814,4463.79,823820344
BEIS,Met Office,2023-05-16,11 SERVICES,PROGRAMMES,GAMMA TELECOM LTD,479814,16071.43,823820344
BEIS,Met Office,2023-05-03,11 SERVICES,PROGRAMMES,"K F LEWIN CONSULTING, LLC",11025,441,-
BEIS,Met Office,2023-05-03,11 SERVICES,PROGRAMMES,"K F LEWIN CONSULTING, LLC",11026,4944.68,-
BEIS,Met Office,2023-05-10,11 SERVICES,PROGRAMMES,KENYA METEOROLOGICAL DEPARTMENT,478254,2012,-
BEIS,Met Office,2023-05-16,11 SERVICES,PROGRAMMES,Microsoft Ltd,479743,3388,724594615
BEIS,Met Office,2023-05-05,11 SERVICES,PROGRAMMES,Microsoft Ltd,479002,28259.89,724594615
BEIS,Met Office,2023-05-05,11 SERVICES,PROGRAMMES,Microsoft Ltd,479002,419066.89,724594615
BEIS,Met Office,2023-05-23,11 SERVICES,PROGRAMMES,NOC INNOVATIONS LIMITED,479978,166644,-
BEIS,Met Office,2023-05-10,PLANT AND EQUIPMENT,PROGRAMMES,PZ&W LTD,479599,9248,684 6795 68
BEIS,Met Office,2023-05-22,11 SERVICES,PROGRAMMES,REDACTED � PERSONAL DATA,24909,-20867.04,112591322
BEIS,Met Office,2023-05-22,11 SERVICES,PROGRAMMES,REDACTED � PERSONAL DATA,24908,20867.04,112591322
BEIS,Met Office,2023-05-03,11 SERVICES,PROGRAMMES,REDACTED � PERSONAL DATA,24758,21073.02,112591322
BEIS,Met Office,2023-05-24,11 SERVICES,PROGRAMMES,REDACTED � PERSONAL DATA,24871,26670.35,112591322
BEIS,Met Office,2023-05-03,11 SERVICES,PROGRAMMES,REGENTS OF THE UNIVERSITY OF COLORADO,11028,53731.23,-
BEIS,Met Office,2023-05-31,11 SERVICES,PROGRAMMES,RESURGENCE URBAN RESILIENCE TRUST,480150,63680.72,259524184
BEIS,Met Office,2023-05-10,11 SERVICES,PROGRAMMES,ROWE IT LTD,479596,6564.12,924964394
BEIS,Met Office,2023-05-16,11 SERVICES,PROGRAMMES,ROWE IT LTD,479451,10500,924964394
BEIS,Met Office,2023-05-10,11 SERVICES,PROGRAMMES,ROWE IT LTD,479596,22974.43,924964394
BEIS,Met Office,2023-05-10,11 SERVICES,PROGRAMMES,ROWE IT LTD,479596,41025.77,924964394
BEIS,Met Office,2023-05-10,11 SERVICES,PROGRAMMES,ROWE IT LTD,479596,41025.77,924964394
BEIS,Met Office,2023-05-10,11 SERVICES,PROGRAMMES,ROWE IT LTD,479596,52512.98,924964394
BEIS,Met Office,2023-05-16,11 SERVICES,PROGRAMMES,ROWE IT LTD,479740,105362.5,924964394
BEIS,Met Office,2023-05-12,11 SERVICES,PROGRAMMES,RSM,479608,3000,890965570
BEIS,Met Office,2023-05-12,11 SERVICES,PROGRAMMES,RSM,479608,3000,890965570
BEIS,Met Office,2023-05-12,11 SERVICES,PROGRAMMES,RSM,479608,3000,890965570
BEIS,Met Office,2023-05-12,11 SERVICES,PROGRAMMES,RSM,479606,4500,890965570
BEIS,Met Office,2023-05-12,11 SERVICES,PROGRAMMES,RSM,479607,4500,890965570
BEIS,Met Office,2023-05-22,06 ACCOMMODATION,PROGRAMMES,ST MODWEN VENTURES LTD,480010,112.5,975081008
BEIS,Met Office,2023-05-03,11 SERVICES,PROGRAMMES,UCAR INCOMING PAYMENTS,11043,0.81,-
BEIS,Met Office,2023-05-10,11 SERVICES,PROGRAMMES,UCAR INCOMING PAYMENTS,11044,0.81,-
BEIS,Met Office,2023-05-03,11 SERVICES,PROGRAMMES,UCAR INCOMING PAYMENTS,11045,0.81,-
BEIS,Met Office,2023-05-31,11 SERVICES,PROGRAMMES,UCAR INCOMING PAYMENTS,11051,2754.77,-
BEIS,Met Office,2023-05-03,11 SERVICES,PROGRAMMES,UCAR INCOMING PAYMENTS,11046,3040.68,-
BEIS,Met Office,2023-05-10,11 SERVICES,PROGRAMMES,UCAR INCOMING PAYMENTS,11044,5189.98,-
BEIS,Met Office,2023-05-03,11 SERVICES,PROGRAMMES,UCAR INCOMING PAYMENTS,11045,7029.11,-
BEIS,Met Office,2023-05-03,11 SERVICES,PROGRAMMES,UCAR INCOMING PAYMENTS,11043,9178.41,-
BEIS,Met Office,2023-05-03,11 SERVICES,PROGRAMMES,UCAR INCOMING PAYMENTS,11046,10444.51,-
BEIS,Met Office,2023-05-02,11 SERVICES,PROGRAMMES,UK ATOMIC ENERGY AUTHORITY,479086,-60362,GB570101391
BEIS,Met Office,2023-05-02,11 SERVICES,PROGRAMMES,UK ATOMIC ENERGY AUTHORITY,478770,60362,GB570101391
BEIS,Met Office,2023-05-02,11 SERVICES,PROGRAMMES,UK ATOMIC ENERGY AUTHORITY,479083,60362,GB570101391
BEIS,Met Office,2023-05-05,11 SERVICES,PROGRAMMES,University of Edinburgh,479182,22000,592950700
BEIS,Met Office,2023-05-02,11 SERVICES,PROGRAMMES,University Of Exeter,479125,52633.79,142047795
BEIS,Met Office,2023-05-05,11 SERVICES,PROGRAMMES,University Of Leeds,475593,-46338.46,613451470
BEIS,Met Office,2023-05-05,11 SERVICES,PROGRAMMES,University Of Leeds,475594,-26657.09,613451470
BEIS,Met Office,2023-05-05,11 SERVICES,PROGRAMMES,University Of Leeds,478982,12500,613451470
BEIS,Met Office,2023-05-05,11 SERVICES,PROGRAMMES,University Of Leeds,479296,132308.47,613451470
BEIS,Met Office,2023-05-05,11 SERVICES,PROGRAMMES,University Of Leeds,479296,237309.66,613451470
BEIS,Met Office,2023-05-17,11 SERVICES,PROGRAMMES,UNIVERSITY OF LUXEMBOURG,24774,22629.82,LU19805732
BEIS,Met Office,2023-05-31,11 SERVICES,PROGRAMMES,University Of Reading,478108,-54024.89,200012659
BEIS,Met Office,2023-05-31,11 SERVICES,PROGRAMMES,University Of Reading,478108,-46391.98,200012659
BEIS,Met Office,2023-05-05,11 SERVICES,PROGRAMMES,University Of Reading,479092,-10,200012659
BEIS,Met Office,2023-05-31,11 SERVICES,PROGRAMMES,University Of Reading,480212,3088.16,200012659
BEIS,Met Office,2023-05-31,11 SERVICES,PROGRAMMES,University Of Reading,479058,46391.98,200012659
BEIS,Met Office,2023-05-31,11 SERVICES,PROGRAMMES,University Of Reading,480212,52440.91,200012659
BEIS,Met Office,2023-05-31,11 SERVICES,PROGRAMMES,University Of Reading,479058,54024.89,200012659
BEIS,Met Office,2023-05-05,11 SERVICES,PROGRAMMES,WARWICK ECONOMICS & DEVELOPMENT LTD.,479374,2200,116732721
BEIS,Met Office,2023-05-31,11 SERVICES,SCIENCE,Bureau Of Meteorology,479645,80183,-
BEIS,Met Office,2023-05-23,07 EQUIPMENT,SCIENCE,CAMTEC ENGINEERING LTD,480074,28,527033861
BEIS,Met Office,2023-05-23,07 EQUIPMENT,SCIENCE,CAMTEC ENGINEERING LTD,480074,44,527033861
BEIS,Met Office,2023-05-23,07 EQUIPMENT,SCIENCE,CAMTEC ENGINEERING LTD,480074,52,527033861
BEIS,Met Office,2023-05-23,07 EQUIPMENT,SCIENCE,CAMTEC ENGINEERING LTD,480074,52,527033861
BEIS,Met Office,2023-05-23,07 EQUIPMENT,SCIENCE,CAMTEC ENGINEERING LTD,480074,90,527033861
BEIS,Met Office,2023-05-23,07 EQUIPMENT,SCIENCE,CAMTEC ENGINEERING LTD,480073,178,527033861
BEIS,Met Office,2023-05-23,07 EQUIPMENT,SCIENCE,CAMTEC ENGINEERING LTD,480074,188,527033861
BEIS,Met Office,2023-05-23,07 EQUIPMENT,SCIENCE,CAMTEC ENGINEERING LTD,480074,260,527033861
BEIS,Met Office,2023-05-23,07 EQUIPMENT,SCIENCE,CAMTEC ENGINEERING LTD,480074,290,527033861
BEIS,Met Office,2023-05-23,07 EQUIPMENT,SCIENCE,CAMTEC ENGINEERING LTD,480073,299,527033861
BEIS,Met Office,2023-05-23,07 EQUIPMENT,SCIENCE,CAMTEC ENGINEERING LTD,480073,343.5,527033861
BEIS,Met Office,2023-05-23,07 EQUIPMENT,SCIENCE,CAMTEC ENGINEERING LTD,480074,382,527033861
BEIS,Met Office,2023-05-23,07 EQUIPMENT,SCIENCE,CAMTEC ENGINEERING LTD,480074,382,527033861
BEIS,Met Office,2023-05-23,07 EQUIPMENT,SCIENCE,CAMTEC ENGINEERING LTD,480073,490,527033861
BEIS,Met Office,2023-05-24,11 SERVICES,SCIENCE,Esri (Uk) Ltd,479203,3215.2,787430791
BEIS,Met Office,2023-05-03,07 EQUIPMENT,SCIENCE,GRIMM AEROSOL TECHNIK GMBH & CO KG,24740,895.74,DE128993085
BEIS,Met Office,2023-05-05,11 SERVICES,SCIENCE,HITACHI CAPITAL VEHICLE SOLUTIONS,479371,3387.36,GB 823 8248 22
BEIS,Met Office,2023-05-10,11 SERVICES,SCIENCE,MEASUREMENT SYSTEMS LIMITED,479603,7006,338 5150 57
BEIS,Met Office,2023-05-09,13 MISCELLANEOUS,SCIENCE,NATIONAL INSTRUMENTS CORP UK LTD,479198,4740,493598779
BEIS,Met Office,2023-05-24,11 SERVICES,SCIENCE,National Oceanography Centre,24779,-160007.74,GB 338 5487 64
BEIS,Met Office,2023-05-24,11 SERVICES,SCIENCE,National Oceanography Centre,24778,160007.74,GB 338 5487 64
BEIS,Met Office,2023-05-18,11 SERVICES,SCIENCE,Plymouth Marine Laboratory,479662,15750,927105830
BEIS,Met Office,2023-05-10,REVENUE,SCIENCE,SCIENCE & TECHNOLOGY FACILITIES COUNCIL,24683,-10516.04,287461957
BEIS,Met Office,2023-05-12,13 MISCELLANEOUS,SCIENCE,University Of Bristol,478168,-3550,991261800
BEIS,Met Office,2023-05-12,13 MISCELLANEOUS,SCIENCE,University Of Bristol,478043,3550,991261800
BEIS,Met Office,2023-05-16,13 MISCELLANEOUS,SCIENCE,University Of Oxford,479788,333.33,125506730
BEIS,Met Office,2023-05-05,13 MISCELLANEOUS,SCIENCE,University Of Reading,479236,-1000,200012659
BEIS,Met Office,2023-05-10,13 MISCELLANEOUS,SCIENCE,University Of Reading,479598,333.33,200012659
BEIS,Met Office,2023-05-05,13 MISCELLANEOUS,SCIENCE,University Of Reading,471908,1000,200012659
BEIS,Met Office,2023-05-05,11 SERVICES,SERVICES,ADAM PHONES LTD,479387,85.5,538877093
BEIS,Met Office,2023-05-12,03 STAFF COSTS T&S,SERVICES,AIRPORT CAR RENTALS LTD,479673,320,-
BEIS,Met Office,2023-05-23,11 SERVICES,SERVICES,APPLIED SATELLITE TECHNOLOGY SYSTEMS LTD,479996,27.22,720108683
BEIS,Met Office,2023-05-12,11 SERVICES,SERVICES,APPLIED SATELLITE TECHNOLOGY SYSTEMS LTD,479567,34.64,720108683
BEIS,Met Office,2023-05-10,11 SERVICES,SERVICES,APPLIED SATELLITE TECHNOLOGY SYSTEMS LTD,479571,34.64,720108683
BEIS,Met Office,2023-05-12,11 SERVICES,SERVICES,APPLIED SATELLITE TECHNOLOGY SYSTEMS LTD,479563,69.28,720108683
BEIS,Met Office,2023-05-12,11 SERVICES,SERVICES,APPLIED SATELLITE TECHNOLOGY SYSTEMS LTD,479564,69.28,720108683
BEIS,Met Office,2023-05-10,11 SERVICES,SERVICES,APPLIED SATELLITE TECHNOLOGY SYSTEMS LTD,479570,103.91,720108683
BEIS,Met Office,2023-05-12,11 SERVICES,SERVICES,APPLIED SATELLITE TECHNOLOGY SYSTEMS LTD,479565,311.74,720108683
BEIS,Met Office,2023-05-17,11 SERVICES,SERVICES,APPLIED SATELLITE TECHNOLOGY SYSTEMS LTD,479566,1316.23,720108683
BEIS,Met Office,2023-05-17,11 SERVICES,SERVICES,APPLIED SATELLITE TECHNOLOGY SYSTEMS LTD,479568,2459.26,720108683
BEIS,Met Office,2023-05-03,03 STAFF COSTS T&S,SERVICES,AVIS BUDGET PAYLESS,24861,948.34,-
BEIS,Met Office,2023-05-02,STOCK,SERVICES,BDS,479172,0,537379609
BEIS,Met Office,2023-05-02,TRADE CREDITORS,SERVICES,BDS,479172,3420,537379609
BEIS,Met Office,2023-05-24,11 SERVICES,SERVICES,Boc Ltd,478407,-125.65,226556555
BEIS,Met Office,2023-05-24,11 SERVICES,SERVICES,Boc Ltd,480086,-125.65,226556555
BEIS,Met Office,2023-05-24,11 SERVICES,SERVICES,Boc Ltd,479221,23823.34,226556555
BEIS,Met Office,2023-05-03,13 MISCELLANEOUS,SERVICES,BUSINESS SUPPORT CENTRE LTD,479232,60.9,927365208
BEIS,Met Office,2023-05-22,11 SERVICES,SERVICES,Campbell Scientific Ltd,479747,-0.05,428453933
BEIS,Met Office,2023-05-22,STOCK,SERVICES,Campbell Scientific Ltd,479747,0,428453933
BEIS,Met Office,2023-05-22,STOCK,SERVICES,Campbell Scientific Ltd,479747,0,428453933
BEIS,Met Office,2023-05-22,TRADE CREDITORS,SERVICES,Campbell Scientific Ltd,479747,81,428453933
BEIS,Met Office,2023-05-22,11 SERVICES,SERVICES,Campbell Scientific Ltd,479747,100,428453933
BEIS,Met Office,2023-05-22,TRADE CREDITORS,SERVICES,Campbell Scientific Ltd,479747,20763.8,428453933
BEIS,Met Office,2023-05-03,03 STAFF COSTS T&S,SERVICES,CHARLIE'S TRAVEL LTD,479290,150,783848277
BEIS,Met Office,2023-05-03,03 STAFF COSTS T&S,SERVICES,CHARLIE'S TRAVEL LTD,479290,432.43,783848277
BEIS,Met Office,2023-05-03,03 STAFF COSTS T&S,SERVICES,CHARLIE'S TRAVEL LTD,479290,1149.61,783848277
BEIS,Met Office,2023-05-22,03 STAFF COSTS T&S,SERVICES,CHARLIE'S TRAVEL LTD,474175,1890.64,783848277
BEIS,Met Office,2023-05-05,08 SOFTWARE LICENCES,SERVICES,CIVICA UK LIMITED,479359,11381.25,391171065
BEIS,Met Office,2023-05-23,07 EQUIPMENT,SERVICES,CLARKE LANE ENGINEERING LTD,479975,418.2,412068487
BEIS,Met Office,2023-05-23,07 EQUIPMENT,SERVICES,CLARKE LANE ENGINEERING LTD,479975,637.6,412068487
BEIS,Met Office,2023-05-12,11 SERVICES,SERVICES,CLOUDREACH EUROPE LIMITED,479638,7300,978187168
BEIS,Met Office,2023-05-30,11 SERVICES,SERVICES,COMPUTACENTER (UK) LTD,480216,2790.77,490334648
BEIS,Met Office,2023-05-23,03 STAFF COSTS T&S,SERVICES,DBS FINANCE RECEIPTS CTS,479974,3993,888805068
BEIS,Met Office,2023-05-23,03 STAFF COSTS T&S,SERVICES,DBS FINANCE RECEIPTS CTS,479973,11220,888805068
BEIS,Met Office,2023-05-24,11 SERVICES,SERVICES,DHL GLOBAL FORWARDING (UK) LTD,479868,290.05,745260438
BEIS,Met Office,2023-05-17,03 STAFF COSTS T&S,SERVICES,FALKLAND ISLAND COMPANY LTD,479873,700,N/A
BEIS,Met Office,2023-05-17,03 STAFF COSTS T&S,SERVICES,FALKLAND ISLAND COMPANY LTD,479874,700,N/A
BEIS,Met Office,2023-05-17,03 STAFF COSTS T&S,SERVICES,FALKLAND ISLAND COMPANY LTD,479875,700,N/A
BEIS,Met Office,2023-05-05,06 ACCOMMODATION,SERVICES,FMS INTERIOR SERVICES LTD,479327,446,922056940
BEIS,Met Office,2023-05-12,11 SERVICES,SERVICES,GAMMA TELECOM LTD,479006,-41.46,823820344
BEIS,Met Office,2023-05-17,11 SERVICES,SERVICES,GAMMA TELECOM LTD,479707,-8.14,823820344
BEIS,Met Office,2023-05-12,11 SERVICES,SERVICES,GAMMA TELECOM LTD,479006,4750,823820344
BEIS,Met Office,2023-05-17,11 SERVICES,SERVICES,GAMMA TELECOM LTD,479707,4750,823820344
BEIS,Met Office,2023-05-12,10 EQUIPMENT MAINTENANCE,SERVICES,GCHQ PUBLIC ACCOUNT - CESG,479675,42667.45,888813658
BEIS,Met Office,2023-05-17,03 STAFF COSTS T&S,SERVICES,HCR LTD,479797,150,733 7205 46
BEIS,Met Office,2023-05-17,03 STAFF COSTS T&S,SERVICES,HCR LTD,479798,150,733 7205 46
BEIS,Met Office,2023-05-17,03 STAFF COSTS T&S,SERVICES,HCR LTD,479799,150,733 7205 46
BEIS,Met Office,2023-05-17,03 STAFF COSTS T&S,SERVICES,HCR LTD,479800,150,733 7205 46
BEIS,Met Office,2023-05-17,03 STAFF COSTS T&S,SERVICES,HCR LTD,479801,150,733 7205 46
BEIS,Met Office,2023-05-17,03 STAFF COSTS T&S,SERVICES,HCR LTD,479802,150,733 7205 46
BEIS,Met Office,2023-05-17,03 STAFF COSTS T&S,SERVICES,HCR LTD,479803,150,733 7205 46
BEIS,Met Office,2023-05-17,03 STAFF COSTS T&S,SERVICES,HCR LTD,479804,150,733 7205 46
BEIS,Met Office,2023-05-17,03 STAFF COSTS T&S,SERVICES,HCR LTD,479805,150,733 7205 46
BEIS,Met Office,2023-05-05,03 STAFF COSTS T&S,SERVICES,HCR LTD,479237,190,733 7205 46
BEIS,Met Office,2023-05-05,03 STAFF COSTS T&S,SERVICES,HCR LTD,479238,1673.2,733 7205 46
BEIS,Met Office,2023-05-05,03 STAFF COSTS T&S,SERVICES,HCR LTD,479239,7538,733 7205 46
BEIS,Met Office,2023-05-23,03 STAFF COSTS T&S,SERVICES,HCR LTD,480017,8208,733 7205 46
BEIS,Met Office,2023-05-17,03 STAFF COSTS T&S,SERVICES,HCR LTD,479806,8228,733 7205 46
BEIS,Met Office,2023-05-05,11 SERVICES,SERVICES,HITACHI CAPITAL VEHICLE SOLUTIONS,479371,6654.72,GB 823 8248 22
BEIS,Met Office,2023-05-05,11 SERVICES,SERVICES,HITACHI CAPITAL VEHICLE SOLUTIONS,479371,6774.72,GB 823 8248 22
BEIS,Met Office,2023-05-05,11 SERVICES,SERVICES,INMARSAT SOLUTIONS (CANADA) INC,479216,44.1,766144223
BEIS,Met Office,2023-05-05,11 SERVICES,SERVICES,LEX AUTOLEASE LTD,479422,5934.12,244155576
BEIS,Met Office,2023-05-09,07 EQUIPMENT,SERVICES,LINKWAVE TECHNOLOGIES LTD,478830,12.95,715940432
BEIS,Met Office,2023-05-09,07 EQUIPMENT,SERVICES,LINKWAVE TECHNOLOGIES LTD,478830,299.75,715940432
BEIS,Met Office,2023-05-31,07 EQUIPMENT,SERVICES,M C ENGINEERING SERVICES,480155,1262.72,813172066
BEIS,Met Office,2023-05-12,11 SERVICES,SERVICES,MADE TECH,479562,259633.98,938565184
BEIS,Met Office,2023-05-30,08 SOFTWARE LICENCES,SERVICES,MERKLE ONE,480204,8315,GB478022835
BEIS,Met Office,2023-05-30,08 SOFTWARE LICENCES,SERVICES,MERKLE ONE,480205,8315,GB478022835
BEIS,Met Office,2023-05-30,08 SOFTWARE LICENCES,SERVICES,MERKLE ONE,480206,8315,GB478022835
BEIS,Met Office,2023-05-30,08 SOFTWARE LICENCES,SERVICES,MERKLE ONE,480207,8315,GB478022835
BEIS,Met Office,2023-05-30,08 SOFTWARE LICENCES,SERVICES,MERKLE ONE,480208,8315,GB478022835
BEIS,Met Office,2023-05-30,08 SOFTWARE LICENCES,SERVICES,MERKLE ONE,480209,8315,GB478022835
BEIS,Met Office,2023-05-30,08 SOFTWARE LICENCES,SERVICES,MERKLE ONE,480210,8315,GB478022835
BEIS,Met Office,2023-05-31,07 EQUIPMENT,SERVICES,METOCEAN TELEMATICS LTD,11062,130.88,-
BEIS,Met Office,2023-05-23,07 EQUIPMENT,SERVICES,NATIONAL INSTRUMENTS CORP UK LTD,479964,455,493598779
BEIS,Met Office,2023-05-17,11 SERVICES,SERVICES,NSSL GLOBAL LTD,11037,56.48,725151948
BEIS,Met Office,2023-05-17,11 SERVICES,SERVICES,NSSL GLOBAL LTD,11038,72.62,725151948
BEIS,Met Office,2023-05-12,11 SERVICES,SERVICES,PETERS & MAY GLOBAL LOGISTICS LTD,479627,1809.99,995183276
BEIS,Met Office,2023-05-09,07 EQUIPMENT,SERVICES,QUASAR MICROWAVE TECHNOLOGY LTD,479195,16,209385203
BEIS,Met Office,2023-05-09,07 EQUIPMENT,SERVICES,QUASAR MICROWAVE TECHNOLOGY LTD,479195,269.96,209385203
BEIS,Met Office,2023-05-09,07 EQUIPMENT,SERVICES,QUASAR MICROWAVE TECHNOLOGY LTD,479195,362.67,209385203
BEIS,Met Office,2023-05-09,07 EQUIPMENT,SERVICES,QUASAR MICROWAVE TECHNOLOGY LTD,479195,428.63,209385203
BEIS,Met Office,2023-05-09,07 EQUIPMENT,SERVICES,QUASAR MICROWAVE TECHNOLOGY LTD,479195,515.72,209385203
BEIS,Met Office,2023-05-09,07 EQUIPMENT,SERVICES,QUASAR MICROWAVE TECHNOLOGY LTD,479195,644.67,209385203
BEIS,Met Office,2023-05-09,07 EQUIPMENT,SERVICES,SB PRECISION ENGINEERING LTD,479490,55.2,137923104
BEIS,Met Office,2023-05-12,11 SERVICES,SERVICES,SOFTWIRE TECHNOLOGY LIMITED,477391,4200,752 1253 57
BEIS,Met Office,2023-05-25,11 SERVICES,SERVICES,SOFTWIRE TECHNOLOGY LIMITED,480133,4200,752 1253 57
BEIS,Met Office,2023-05-12,07 EQUIPMENT,SERVICES,SOUTHERN ROPES,479445,925,GB 891 9765 57
BEIS,Met Office,2023-05-12,07 EQUIPMENT,SERVICES,SOUTHERN ROPES,479445,1350,GB 891 9765 57
BEIS,Met Office,2023-05-12,07 EQUIPMENT,SERVICES,SOUTHERN ROPES,479445,2375.5,GB 891 9765 57
BEIS,Met Office,2023-05-12,07 EQUIPMENT,SERVICES,SOUTHERN ROPES,479445,4357,GB 891 9765 57
BEIS,Met Office,2023-05-12,07 EQUIPMENT,SERVICES,SOUTHERN ROPES,479445,7388.7,GB 891 9765 57
BEIS,Met Office,2023-05-10,03 STAFF COSTS T&S,SERVICES,STORAGE FACTORY,479056,176.67,130 5237 12
BEIS,Met Office,2023-05-12,03 STAFF COSTS T&S,SERVICES,STORAGE FACTORY,479486,176.67,130 5237 12
BEIS,Met Office,2023-05-26,03 STAFF COSTS T&S,SERVICES,STORAGE FACTORY,480121,176.67,130 5237 12
BEIS,Met Office,2023-05-09,07 EQUIPMENT,SERVICES,SWALE TECHNOLOGIES LTD,479444,26975.6,530846451
BEIS,Met Office,2023-05-16,11 SERVICES,SERVICES,Trinity House,479746,1862.1,243120414
BEIS,Met Office,2023-05-24,11 SERVICES,SERVICES,UK TELEMATICS LIMITED,480046,2348.64,GB763051643
BEIS,Met Office,2023-05-24,STOCK,SERVICES,VAISALA LTD,24857,0,336100011
BEIS,Met Office,2023-05-10,07 EQUIPMENT,SERVICES,VAISALA LTD,24709,8724.73,336100011
BEIS,Met Office,2023-05-17,07 EQUIPMENT,SERVICES,VAISALA LTD,24777,8728.65,336100011
BEIS,Met Office,2023-05-24,TRADE CREDITORS,SERVICES,VAISALA LTD,24857,83758.36,336100011
BEIS,Met Office,2023-05-17,07 EQUIPMENT,SERVICES,Vaisala Oyj,24759,3084.46,FI01244162
BEIS,Met Office,2023-05-17,07 EQUIPMENT,SERVICES,Vaisala Oyj,24870,3306.6,FI01244162
BEIS,Met Office,2023-05-31,07 EQUIPMENT,SERVICES,Vaisala Oyj,24767,8556.31,FI01244162
BEIS,Met Office,2023-05-17,07 EQUIPMENT,SERVICES,Vaisala Oyj,24759,12851.91,FI01244162
BEIS,Met Office,2023-05-17,07 EQUIPMENT,SERVICES,Vaisala Oyj,24870,13779.75,FI01244162
BEIS,Met Office,2023-05-31,07 EQUIPMENT,SERVICES,Vaisala Oyj,24767,35651.27,FI01244162
BEIS,Met Office,2023-05-03,11 SERVICES,SERVICES,VOLKSWAGEN GROUP LEASING,478499,-102.15,BG745963883
BEIS,Met Office,2023-05-03,11 SERVICES,SERVICES,VOLKSWAGEN GROUP LEASING,478498,-84.76,BG745963883
BEIS,Met Office,2023-05-24,11 SERVICES,SERVICES,VOLKSWAGEN GROUP LEASING,480045,0,BG745963883
BEIS,Met Office,2023-05-24,11 SERVICES,SERVICES,VOLKSWAGEN GROUP LEASING,480045,110,BG745963883
BEIS,Met Office,2023-05-03,11 SERVICES,SERVICES,VOLKSWAGEN GROUP LEASING,476810,345.18,BG745963883
BEIS,Met Office,2023-05-12,13 MISCELLANEOUS,SERVICES,VOSPERS,479701,6322.41,144147974
BEIS,Met Office,2023-05-23,STOCK,SERVICES,WESCOL LTD,480002,0,100293524
BEIS,Met Office,2023-05-23,11 SERVICES,SERVICES,WESCOL LTD,480002,12,100293524
BEIS,Met Office,2023-05-23,TRADE CREDITORS,SERVICES,WESCOL LTD,480002,1230.4,100293524
BEIS,Met Office,2023-05-10,STOCK,SERVICES,WINDSPEED LIMITED,479204,0,800755256
BEIS,Met Office,2023-05-10,11 SERVICES,SERVICES,WINDSPEED LIMITED,479204,22,800755256
BEIS,Met Office,2023-05-10,TRADE CREDITORS,SERVICES,WINDSPEED LIMITED,479204,199.2,800755256
BEIS,Met Office,2023-05-16,13 MISCELLANEOUS,SERVICES,XYLEM ANALYTICS UK LIMITED,479719,25,828197985
BEIS,Met Office,2023-05-16,PLANT AND EQUIPMENT,SERVICES,XYLEM ANALYTICS UK LIMITED,479719,18540,828197985
BEIS,Met Office,2023-05-16,PLANT AND EQUIPMENT,SERVICES,XYLEM ANALYTICS UK LIMITED,479719,18540,828197985
BEIS,Met Office,2023-05-16,PLANT AND EQUIPMENT,SERVICES,XYLEM ANALYTICS UK LIMITED,479719,18540,828197985
BEIS,Met Office,2023-05-31,13 MISCELLANEOUS,SERVICES,YOUNG CALIBRATION LIMITED,480301,15,673900720
BEIS,Met Office,2023-05-31,10 EQUIPMENT MAINTENANCE,SERVICES,YOUNG CALIBRATION LIMITED,480301,3000,673900720
BEIS,Met Office,2023-05-17,11 SERVICES,TECHNOLOGY AND CIO,AKAMAI TECHNOLOGIES LTD,479424,4921.28,745091237
BEIS,Met Office,2023-05-17,11 SERVICES,TECHNOLOGY AND CIO,AKAMAI TECHNOLOGIES LTD,479424,25836.75,745091237
BEIS,Met Office,2023-05-25,11 SERVICES,TECHNOLOGY AND CIO,ALLABLE,480003,3752.58,351 9518 87
BEIS,Met Office,2023-05-10,11 SERVICES,TECHNOLOGY AND CIO,AMAZON WEB SERVICES EMEA SARL,11060,1160.5,GB 283644382
BEIS,Met Office,2023-05-10,11 SERVICES,TECHNOLOGY AND CIO,AMAZON WEB SERVICES EMEA SARL,11063,22724.84,GB 283644382
BEIS,Met Office,2023-05-10,11 SERVICES,TECHNOLOGY AND CIO,AMAZON WEB SERVICES EMEA SARL,11061,260355.57,GB 283644382
BEIS,Met Office,2023-05-03,11 SERVICES,TECHNOLOGY AND CIO,AMAZON WEB SERVICES INC.,11024,63.05,N/A
BEIS,Met Office,2023-05-31,11 SERVICES,TECHNOLOGY AND CIO,AMAZON WEB SERVICES INC.,11050,236.12,N/A
BEIS,Met Office,2023-05-10,11 SERVICES,TECHNOLOGY AND CIO,AMAZON WEB SERVICES INC.,10983,21639.95,N/A
BEIS,Met Office,2023-05-03,11 SERVICES,TECHNOLOGY AND CIO,AMAZON WEB SERVICES INC.,11027,22686.17,N/A
BEIS,Met Office,2023-05-22,11 SERVICES,TECHNOLOGY AND CIO,BAE SYSTEMS APPLIED INTELLIGENCE LIMITED,479935,581.5,GB641407169
BEIS,Met Office,2023-05-16,11 SERVICES,TECHNOLOGY AND CIO,BAE SYSTEMS APPLIED INTELLIGENCE LIMITED,479807,1299.61,GB641407169
BEIS,Met Office,2023-05-22,11 SERVICES,TECHNOLOGY AND CIO,BAE SYSTEMS APPLIED INTELLIGENCE LIMITED,479971,3300,GB641407169
BEIS,Met Office,2023-05-19,11 SERVICES,TECHNOLOGY AND CIO,BAE SYSTEMS APPLIED INTELLIGENCE LIMITED,479822,4250,GB641407169
BEIS,Met Office,2023-05-22,11 SERVICES,TECHNOLOGY AND CIO,BAE SYSTEMS APPLIED INTELLIGENCE LIMITED,479940,5400,GB641407169
BEIS,Met Office,2023-05-16,11 SERVICES,TECHNOLOGY AND CIO,BAE SYSTEMS APPLIED INTELLIGENCE LIMITED,479808,5850,GB641407169
BEIS,Met Office,2023-05-16,11 SERVICES,TECHNOLOGY AND CIO,BAE SYSTEMS APPLIED INTELLIGENCE LIMITED,479813,5940,GB641407169
BEIS,Met Office,2023-05-19,11 SERVICES,TECHNOLOGY AND CIO,BAE SYSTEMS APPLIED INTELLIGENCE LIMITED,479893,6300,GB641407169
BEIS,Met Office,2023-05-22,11 SERVICES,TECHNOLOGY AND CIO,BAE SYSTEMS APPLIED INTELLIGENCE LIMITED,479937,6356.25,GB641407169
BEIS,Met Office,2023-05-22,11 SERVICES,TECHNOLOGY AND CIO,BAE SYSTEMS APPLIED INTELLIGENCE LIMITED,479936,6600,GB641407169
BEIS,Met Office,2023-05-19,11 SERVICES,TECHNOLOGY AND CIO,BAE SYSTEMS APPLIED INTELLIGENCE LIMITED,479886,6750,GB641407169
BEIS,Met Office,2023-05-19,11 SERVICES,TECHNOLOGY AND CIO,BAE SYSTEMS APPLIED INTELLIGENCE LIMITED,479890,7033,GB641407169
BEIS,Met Office,2023-05-16,11 SERVICES,TECHNOLOGY AND CIO,BAE SYSTEMS APPLIED INTELLIGENCE LIMITED,479811,7200,GB641407169
BEIS,Met Office,2023-05-16,11 SERVICES,TECHNOLOGY AND CIO,BAE SYSTEMS APPLIED INTELLIGENCE LIMITED,479810,7574,GB641407169
BEIS,Met Office,2023-05-16,11 SERVICES,TECHNOLOGY AND CIO,BAE SYSTEMS APPLIED INTELLIGENCE LIMITED,479809,8656,GB641407169
BEIS,Met Office,2023-05-16,11 SERVICES,TECHNOLOGY AND CIO,BAE SYSTEMS APPLIED INTELLIGENCE LIMITED,479812,9240,GB641407169
BEIS,Met Office,2023-05-16,11 SERVICES,TECHNOLOGY AND CIO,BAE SYSTEMS APPLIED INTELLIGENCE LIMITED,479583,9467.5,GB641407169
BEIS,Met Office,2023-05-19,11 SERVICES,TECHNOLOGY AND CIO,BAE SYSTEMS APPLIED INTELLIGENCE LIMITED,479888,9738,GB641407169
BEIS,Met Office,2023-05-16,11 SERVICES,TECHNOLOGY AND CIO,BAE SYSTEMS APPLIED INTELLIGENCE LIMITED,479586,10560,GB641407169
BEIS,Met Office,2023-05-22,11 SERVICES,TECHNOLOGY AND CIO,BAE SYSTEMS APPLIED INTELLIGENCE LIMITED,479939,10560,GB641407169
BEIS,Met Office,2023-05-16,11 SERVICES,TECHNOLOGY AND CIO,BAE SYSTEMS APPLIED INTELLIGENCE LIMITED,479588,11256,GB641407169
BEIS,Met Office,2023-05-22,11 SERVICES,TECHNOLOGY AND CIO,BAE SYSTEMS APPLIED INTELLIGENCE LIMITED,479938,11715,GB641407169
BEIS,Met Office,2023-05-22,11 SERVICES,TECHNOLOGY AND CIO,BAE SYSTEMS APPLIED INTELLIGENCE LIMITED,479941,11879.88,GB641407169
BEIS,Met Office,2023-05-16,11 SERVICES,TECHNOLOGY AND CIO,BAE SYSTEMS APPLIED INTELLIGENCE LIMITED,479589,12325,GB641407169
BEIS,Met Office,2023-05-16,11 SERVICES,TECHNOLOGY AND CIO,BAE SYSTEMS APPLIED INTELLIGENCE LIMITED,479584,12780.25,GB641407169
BEIS,Met Office,2023-05-16,11 SERVICES,TECHNOLOGY AND CIO,BAE SYSTEMS APPLIED INTELLIGENCE LIMITED,479582,13132,GB641407169
BEIS,Met Office,2023-05-19,11 SERVICES,TECHNOLOGY AND CIO,BAE SYSTEMS APPLIED INTELLIGENCE LIMITED,479891,15125.25,GB641407169
BEIS,Met Office,2023-05-16,11 SERVICES,TECHNOLOGY AND CIO,BAE SYSTEMS APPLIED INTELLIGENCE LIMITED,479585,16884,GB641407169
BEIS,Met Office,2023-05-16,11 SERVICES,TECHNOLOGY AND CIO,BAE SYSTEMS APPLIED INTELLIGENCE LIMITED,479587,16884,GB641407169
BEIS,Met Office,2023-05-17,11 SERVICES,TECHNOLOGY AND CIO,BAE SYSTEMS APPLIED INTELLIGENCE LIMITED,479711,16884,GB641407169
BEIS,Met Office,2023-05-19,11 SERVICES,TECHNOLOGY AND CIO,BAE SYSTEMS APPLIED INTELLIGENCE LIMITED,479889,16884,GB641407169
BEIS,Met Office,2023-05-19,11 SERVICES,TECHNOLOGY AND CIO,BAE SYSTEMS APPLIED INTELLIGENCE LIMITED,479892,19771,GB641407169
BEIS,Met Office,2023-05-18,11 SERVICES,TECHNOLOGY AND CIO,BJSS LIMITED,479630,74930.5,613295452
BEIS,Met Office,2023-05-02,08 SOFTWARE LICENCES,TECHNOLOGY AND CIO,BOXXE,479196,4937.37,734245248
BEIS,Met Office,2023-05-09,08 SOFTWARE LICENCES,TECHNOLOGY AND CIO,BYTES SOFTWARE SERVICES LTD,479005,2625.23,823818226
BEIS,Met Office,2023-05-09,08 SOFTWARE LICENCES,TECHNOLOGY AND CIO,BYTES SOFTWARE SERVICES LTD,479005,3723.3,823818226
BEIS,Met Office,2023-05-09,08 SOFTWARE LICENCES,TECHNOLOGY AND CIO,BYTES SOFTWARE SERVICES LTD,479005,7456.8,823818226
BEIS,Met Office,2023-05-09,08 SOFTWARE LICENCES,TECHNOLOGY AND CIO,BYTES SOFTWARE SERVICES LTD,479005,16036.23,823818226
BEIS,Met Office,2023-05-09,08 SOFTWARE LICENCES,TECHNOLOGY AND CIO,BYTES SOFTWARE SERVICES LTD,478149,35278.08,823818226
BEIS,Met Office,2023-05-18,11 SERVICES,TECHNOLOGY AND CIO,CLOUDREACH EUROPE LIMITED,479742,3343.32,978187168
BEIS,Met Office,2023-05-18,11 SERVICES,TECHNOLOGY AND CIO,CLOUDREACH EUROPE LIMITED,479637,5150,978187168
BEIS,Met Office,2023-05-10,10 EQUIPMENT MAINTENANCE,TECHNOLOGY AND CIO,COMPUTACENTER (UK) LTD,479421,-44075.07,490334648
BEIS,Met Office,2023-05-12,07 EQUIPMENT,TECHNOLOGY AND CIO,COMPUTACENTER (UK) LTD,479703,1069.98,490334648
BEIS,Met Office,2023-05-12,07 EQUIPMENT,TECHNOLOGY AND CIO,COMPUTACENTER (UK) LTD,479704,2033.28,490334648
BEIS,Met Office,2023-05-30,08 SOFTWARE LICENCES,TECHNOLOGY AND CIO,COMPUTACENTER (UK) LTD,480081,2069.46,490334648
BEIS,Met Office,2023-05-02,10 EQUIPMENT MAINTENANCE,TECHNOLOGY AND CIO,COMPUTACENTER (UK) LTD,479177,2696.48,490334648
BEIS,Met Office,2023-05-30,10 EQUIPMENT MAINTENANCE,TECHNOLOGY AND CIO,COMPUTACENTER (UK) LTD,480211,3202.07,490334648
BEIS,Met Office,2023-05-30,07 EQUIPMENT,TECHNOLOGY AND CIO,COMPUTACENTER (UK) LTD,480081,10491,490334648
BEIS,Met Office,2023-05-19,10 EQUIPMENT MAINTENANCE,TECHNOLOGY AND CIO,COMPUTACENTER (UK) LTD,479881,12160.48,490334648
BEIS,Met Office,2023-05-30,INFORMATION TECHNOLOGY,TECHNOLOGY AND CIO,COMPUTACENTER (UK) LTD,480219,12993.3,490334648
BEIS,Met Office,2023-05-30,INFORMATION TECHNOLOGY,TECHNOLOGY AND CIO,COMPUTACENTER (UK) LTD,480217,17324.4,490334648
BEIS,Met Office,2023-05-30,INFORMATION TECHNOLOGY,TECHNOLOGY AND CIO,COMPUTACENTER (UK) LTD,480218,17324.4,490334648
BEIS,Met Office,2023-05-02,10 EQUIPMENT MAINTENANCE,TECHNOLOGY AND CIO,COMPUTACENTER (UK) LTD,479191,44075.07,490334648
BEIS,Met Office,2023-05-10,10 EQUIPMENT MAINTENANCE,TECHNOLOGY AND CIO,COMPUTACENTER (UK) LTD,479192,44075.07,490334648
BEIS,Met Office,2023-05-30,11 SERVICES,TECHNOLOGY AND CIO,COMPUTACENTER (UK) LTD,480173,84991,490334648
BEIS,Met Office,2023-05-30,08 SOFTWARE LICENCES,TECHNOLOGY AND CIO,COMPUTACENTER (UK) LTD,480081,86049.88,490334648
BEIS,Met Office,2023-05-10,11 SERVICES,TECHNOLOGY AND CIO,COMPUTACENTER (UK) LTD,479594,286875,490334648
BEIS,Met Office,2023-05-09,08 SOFTWARE LICENCES,TECHNOLOGY AND CIO,Digital.ai Software (UK) Ltd,478260,4248.01,228794369
BEIS,Met Office,2023-05-31,11 SERVICES,TECHNOLOGY AND CIO,DMARC ADVISOR B.V.,480213,5250,NL852616879B01
BEIS,Met Office,2023-05-19,13 MISCELLANEOUS,TECHNOLOGY AND CIO,FIBRE TECHNOLOGIES LIMITED,479944,14,572640635
BEIS,Met Office,2023-05-19,07 EQUIPMENT,TECHNOLOGY AND CIO,FIBRE TECHNOLOGIES LIMITED,479944,119.16,572640635
BEIS,Met Office,2023-05-19,07 EQUIPMENT,TECHNOLOGY AND CIO,FIBRE TECHNOLOGIES LIMITED,479944,259.32,572640635
BEIS,Met Office,2023-05-02,11 SERVICES,TECHNOLOGY AND CIO,FLYFORM LTD,479230,1990,237333808
BEIS,Met Office,2023-05-25,08 SOFTWARE LICENCES,TECHNOLOGY AND CIO,GOOGLE IRELAND LTD,478637,43.8,6388047V
BEIS,Met Office,2023-05-25,08 SOFTWARE LICENCES,TECHNOLOGY AND CIO,GOOGLE IRELAND LTD,479207,48.94,6388047V
BEIS,Met Office,2023-05-24,08 SOFTWARE LICENCES,TECHNOLOGY AND CIO,"IBL SOFTWARE ENGINEERING, SPOL S.R.O.",479863,32699.38,SK2020241883
BEIS,Met Office,2023-05-17,08 SOFTWARE LICENCES,TECHNOLOGY AND CIO,"IBL SOFTWARE ENGINEERING, SPOL S.R.O.",24773,111731.99,SK2020241883
BEIS,Met Office,2023-05-24,08 SOFTWARE LICENCES,TECHNOLOGY AND CIO,"IBL SOFTWARE ENGINEERING, SPOL S.R.O.",479863,124696.18,SK2020241883
BEIS,Met Office,2023-05-02,08 SOFTWARE LICENCES,TECHNOLOGY AND CIO,Ibm United Kingdom Ltd,479208,7300.9,107328000
BEIS,Met Office,2023-05-02,11 SERVICES,TECHNOLOGY AND CIO,Ibm United Kingdom Ltd,479217,13440.5,107328000
BEIS,Met Office,2023-05-22,08 SOFTWARE LICENCES,TECHNOLOGY AND CIO,Ibm United Kingdom Ltd,479972,413870.1,107328000
BEIS,Met Office,2023-05-23,08 SOFTWARE LICENCES,TECHNOLOGY AND CIO,L3HARRIS GEOSPATIAL SOLUTIONS UK LTD,480048,75000,GB 7093026 51
BEIS,Met Office,2023-05-03,10 EQUIPMENT MAINTENANCE,TECHNOLOGY AND CIO,ORACLE CORPORATION UK LTD,479242,20167.09,391313073
BEIS,Met Office,2023-05-03,10 EQUIPMENT MAINTENANCE,TECHNOLOGY AND CIO,ORACLE CORPORATION UK LTD,479241,29105.48,391313073
BEIS,Met Office,2023-05-05,10 EQUIPMENT MAINTENANCE,TECHNOLOGY AND CIO,ORACLE CORPORATION UK LTD,479328,234605.46,391313073
BEIS,Met Office,2023-05-16,08 SOFTWARE LICENCES,TECHNOLOGY AND CIO,"PHOENIX SOFTWARE INTERNATIONAL, INC",11073,7538.68,-
BEIS,Met Office,2023-05-16,08 SOFTWARE LICENCES,TECHNOLOGY AND CIO,PHOENIX SOFTWARE LIMITED,479824,1088.03,755349015
BEIS,Met Office,2023-05-12,08 SOFTWARE LICENCES,TECHNOLOGY AND CIO,PHOENIX SOFTWARE LIMITED,479699,24230.52,755349015
BEIS,Met Office,2023-05-03,08 SOFTWARE LICENCES,TECHNOLOGY AND CIO,PRESENTATION CARTOGRAPHY LTD,479223,2014.48,-
BEIS,Met Office,2023-05-03,08 SOFTWARE LICENCES,TECHNOLOGY AND CIO,PRESENTATION CARTOGRAPHY LTD,479224,7091.76,-
BEIS,Met Office,2023-05-03,08 SOFTWARE LICENCES,TECHNOLOGY AND CIO,PRESENTATION CARTOGRAPHY LTD,479224,7520.24,-
BEIS,Met Office,2023-05-03,08 SOFTWARE LICENCES,TECHNOLOGY AND CIO,PRESENTATION CARTOGRAPHY LTD,479223,8353.28,-
BEIS,Met Office,2023-05-03,08 SOFTWARE LICENCES,TECHNOLOGY AND CIO,PRESENTATION CARTOGRAPHY LTD,479224,40824.16,-
BEIS,Met Office,2023-05-09,11 SERVICES,TECHNOLOGY AND CIO,QA LTD,479481,5412,864455303
BEIS,Met Office,2023-05-18,11 SERVICES,TECHNOLOGY AND CIO,QA LTD,479126,70510,864455303
BEIS,Met Office,2023-05-24,11 SERVICES,TECHNOLOGY AND CIO,RED HAT UK LTD,479942,500,875232905
BEIS,Met Office,2023-05-18,11 SERVICES,TECHNOLOGY AND CIO,SPECIALIST COMPUTER CENTRES,479897,23199,313651680
BEIS,Met Office,2023-05-12,11 SERVICES,TECHNOLOGY AND CIO,WIREFAST LTD,479714,21.38,749536001
BEIS,Met Office,2023-05-12,11 SERVICES,TECHNOLOGY AND CIO,WIREFAST LTD,479715,1068.42,749536001
BEIS,Met Office,2023-05-12,11 SERVICES,TECHNOLOGY AND CIO,WIREFAST LTD,479713,1450.91,749536001
BEIS,Met Office,2023-05-19,11 SERVICES,TECHNOLOGY AND CIO,WT CONSULTANCY (SW) LTD,479676,2450,223 4662 25
